Workbook

Sheet Datos de entrada
B3: DATOS DE ENTRADA
C5: Ingresar los siguientes datos:
C7: DATOS DE ENTRADA
C8: Caudal de diseño | F8: 20 | G8: m3/hr
C9: Cota terreno | F9: 45 | G9: msnm
C10: Cota Batea afluente a la EBAR | F10: 43.63 | G10: msnm
C11: Cota del Nivel de Entrega | F11: 47 | G11: msnm
C12: Longitud entre salida de EBAR y descarga | F12: 50 | G12: m
C13: Temperatura del liquido | F13: 15 | G13: ºC
C14: Tiempo del ciclo requerido | F14: 15 | G14: min
C15: Valor por kW | F15: 800 | G15: $/kW.hr
C16: Periodo de diseño | F16: 20 | G16: años
C17: Tasa Aumento del costo energético | F17: 0.05
C18: Tasa de descuento | F18: 0.12 | G18: EA
C20: Cantidad de accesorios por tubería de impulsión
C21: Accesorios | F21: Impulsión 1 | G21: impulsión 2
F22: Cant | G22: Cant
C23: Válvula de globo | F23: 0 | G23: 0
C24: Válvula de mariposa | F24: 0 | G24: 0
C25: Válvula de Cheque | F25: 1 | G25: 0
C26: Válvula de compuerta | F26: 1 | G26: 0
C27: Codo 90 radio corto | F27: 0 | G27: 3
C28: Codo 90 radio medio | F28: 0 | G28: 0
C29: Codo 90 gran radio | F29: 1 | G29: 0
C30: Codo 45 | F30: 0 | G30: 2
C31: Te, en sentido recto | F31: 2 | G31: 1
C32: Te, a través de la salida lateral | F32: 0 | G32: 0
C33: Uniones | F33: 1 | G33: 0
C34: ye de 45°, en sentido recto | F34: 0 | G34: 0
C35: ye de 45°, en sentido lateral | F35: 0 | G35: 0
C36: Entrada recta a tope | F36: 0 | G36: 0
C37: Entrada con boca acampanada | F37: 0 | G37: 0
C38: Entrada con tubo entrante | F38: 0 | G38: 0
C39: Salida tubería | F39: 0 | G39: 1
C40: Nota: impulsión 1 se refiere a la tubería dentro de la estación de bombeo, incluida la cámara de válvulas; impulsión 2 se refiere a la tubería desde la estación de bombeo hasta el punto de descarga.

Sheet Bombas coincidentes
A2: BOMBAS DISPONIBLES PARA LOS DATOS SUMINISTRADOS
C4: INFORMACIÓN DEL PUNTO BOMBEO
C5: Caudal | D5: =Q/3.6 -> 5.555555556 | E5: l/s | G5: Pérdidas por fricción Impulsión 1 | J5: ='Linea de impulsión'!D24 -> 0.2459815237 | K5: m
C6: Caudal | D6: ='Datos de entrada'!F8 -> 20 | E6: m3/hr | G6: Pérdidas menores Impulsión 1 | J6: ='Linea de impulsión'!D27 -> 0.6587651457 | K6: m
C7: Altura Geométrica | D7: ='Datos de entrada'!F11-'Pozo humedo'!D17 -> 4.85 | E7: m | G7: Pérdidas por fricción Impulsión 2 | J7: ='Linea de impulsión'!H24 -> 1.013871365 | K7: m
C8: Altura Total | D8: =D7+'Linea de impulsión'!D29+'Linea de impulsión'!H29 -> 7.131694063 | E8: m | G8: Pérdidas menores Impulsión 2 | J8: ='Linea de impulsión'!H27 -> 0.3630760283 | K8: m
C10: VALIDACIÓN DE LAS POSIBLES BOMBAS | G10: Peso específico | J10: =VLOOKUP('Linea de impulsión'!D7,'Prop. Agua'!$A$3:$B$16,2,FALSE) -> 9.798 | K10: kN/m3
G11: Potencia útil | J11: =J10*(Q/3600)*H -> 0.3882018802 | K11: kW
C13: No. De opciones | E13: =COUNTIF('Base de datos'!W:W,"OK") -> 19 | P13: GRAFICA DE LA CURVA DEL SISTEMA VS CURVA DE LA BOMBA | W13: =IFERROR(VLOOKUP("X",$B$17:$M$56,2,FALSE),"") -> DRV/A50-155-1.8M
B15: Graficar | C15: Modelo | D15: Empresa | E15: f Sólidos | F15: Conexión | G15: f Descarga | H15: Motor | I15: Potencia | J15: Velocidad | K15: Sumergencia | L15: f Impulsor | M15: Eficiencia
E16: [mm] | G16: DN [mm] | I16: [kW] | J16: [R.P.M] | K16: [mm] | L16: [mm] | M16: [%]
B17: X | C17: DRV/A50-155-1.8M | D17: EBARA | E17: 50 | F17: Bridado | G17: 50 | H17: Monofásico | I17: 1.8 | J17: 2900 | K17: 339 | L17: 110 | M17: 74.553
C18: DRV/A50-140-1.8M | D18: EBARA | E18: 50 | F18: Bridado | G18: 50 | H18: Monofásico | I18: 1.8 | J18: 2900 | K18: 339 | L18: 110 | M18: 69.258
C19: DRV/A50-140-1.4 | D19: EBARA | E19: 50 | F19: Bridado | G19: 50 | H19: Trifásico | I19: 1.4 | J19: 2900 | K19: 339 | L19: 110 | M19: 69.258
C20: DRV/A65-119-2.3 | D20: EBARA | E20: 65 | F20: Bridado | G20: 65 | H20: Trifásico | I20: 2.3 | J20: 2900 | K20: 367 | L20: 110 | M20: 66.083
C21: FEKA 2500.4T | D21: DAB | E21: 62 | F21: Bridado | G21: 65 | H21: Trifásico | I21: 1.4 | J21: 2900 | K21: 400 | L21: 110 | M21: 65.769
C22: ARS 50-14MI/1,4 | D22: BOMBAS IDEAL | E22: 25 | F22: Bridado | G22: 50 | H22: Trifásico | I22: 1 | J22: 2850 | K22: 297 | L22: 110 | M22: 65.504
C23: AS0630 S13/4D | D23: ABS | E23: 60 | F23: Brida DN | G23: 65 | H23: Trifásico | I23: 1.3 | J23: 1450 | K23: 348 | L23: 186 | M23: 64.159
C24: FEKA 3030.2T | D24: DAB | E24: 67 | F24: Bridado | G24: 80 | H24: Trifásico | I24: 2.3 | J24: 2900 | K24: 400 | L24: 110 | M24: 64.107
C25: FEKA 1400 M | D25: DAB | E25: 38 | F25: Roscado | G25: 50 | H25: Monofásico | I25: 1.1 | J25: 2900 | K25: 400 | L25: 110 | M25: 62.569
C26: AS0840 S12/2W | D26: ABS | E26: 30 | F26: Brida DN | G26: 80 | H26: Monofásico | I26: 1.2 | J26: 2900 | K26: 305 | L26: 118 | M26: 62.511
C27: ARS 80-18V/1,7 | D27: BOMBAS IDEAL | E27: 50 | F27: Bridado | G27: 80 | H27: Trifásico | I27: 1 | J27: 1450 | K27: 420 | L27: 110 | M27: 61.815
C28: ARS 50-16V/1,8 | D28: BOMBAS IDEAL | E28: 50 | F28: Roscado | G28: 50 | H28: Trifásico | I28: 1.3 | J28: 2850 | K28: 339 | L28: 110 | M28: 54.322
C29: AS0840 S12/2D | D29: ABS | E29: 30 | F29: Brida DN | G29: 80 | H29: Trifásico | I29: 1.2 | J29: 2900 | K29: 305 | L29: 118 | M29: 52.511
C30: ARS 65-18V/1,7 | D30: BOMBAS IDEAL | E30: 50 | F30: Roscado | G30: 65 | H30: Trifásico | I30: 1.2 | J30: 1450 | K30: 383 | L30: 110 | M30: 52.109
C31: DRV/A65-182-1.4 | D31: EBARA | E31: 50 | F31: Bridado | G31: 65 | H31: Trifásico | I31: 1.3 | J31: 2900 | K31: 383 | L31: 110 | M31: 51.446
C32: DRV/A80-182-1.4 | D32: EBARA | E32: 50 | F32: Bridado | G32: 80 | H32: Trifásico | I32: 1.4 | J32: 2900 | K32: 418 | L32: 110 | M32: 51.0118
C33: DRV/A65-182-1.2M | D33: EBARA | E33: 50 | F33: Bridado | G33: 65 | H33: Monofásico | I33: 1.2 | J33: 2900 | K33: 383 | L33: 110 | M33: 50.6676
C34: DRV/A80-182-1.2M | D34: EBARA | E34: 50 | F34: Bridado | G34: 80 | H34: Monofásico | I34: 1.2 | J34: 2900 | K34: 418 | L34: 110 | M34: 50.4997
C35: AS0830 S13/4D | D35: ABS | E35: 60 | F35: Brida DN | G35: 80 | H35: Trifásico | I35: 1.3 | J35: 1450 | K35: 305 | L35: 186 | M35: 48.78

Sheet Linea de impulsión
B2: DIMENSIONAMIENTO LÍNEA DE IMPULSIÓN
C5: DATOS DE ENTRADA TUBERÍA DE IMPULSIÓN
C6: Longitud | D6: ='Datos de entrada'!F12 -> 50 | E6: m
C7: Temperatura | D7: ='Datos de entrada'!F13 -> 15 | E7: ºC
C9: Material impulsión 1 | D9: =Optimización!O3 -> HD | G9: Material impulsión 2 | H9: =Optimización!O4 -> GRP
C10: Longitud impulsión 1 | D10: ='Pozo humedo'!D20 -> 3.4 | E10: m | G10: longitud impulsión 2 | H10: =D6 -> 50 | I10: m
C12: PÉRDIDAS POR FRICCIÓN IMPULSIÓN 1 | G12: PÉRDIDAS POR FRICCIÓN IMPULSIÓN 2
C13: Caudal de diseño | D13: =Q/3.6 -> 5.555555556 | E13: l/s | G13: Caudal de diseño | H13: =Q/3.6 -> 5.555555556 | I13: l/s
C14: Velocidad mínima | D14: 1.6 | E14: m/s | G14: Velocidad mínima | H14: 1.1 | I14: m/s
C15: Velocidad máxima | D15: 2.4 | E15: m/s | G15: Velocidad máxima | H15: 2.4 | I15: m/s
C16: Diámetro máximo | D16: =1.128*SQRT(($D$13/1000)/D14)*1000 -> 66.46803743 | E16: mm | G16: Diámetro máximo | H16: =1.128*SQRT(($H$13/1000)/H14)*1000 -> 80.16346935 | I16: mm
C17: Diámetro mínimo | D17: =1.128*SQRT(($D$13/1000)/D15)*1000 -> 54.2709253 | E17: mm | G17: Diámetro mínimo | H17: =1.128*SQRT(($H$13/1000)/H15)*1000 -> 54.2709253 | I17: mm
C18: Diámetro | D18: =Optimización!P3 -> 2.5 | E18: plg | G18: Diámetro | H18: =Optimización!P4 -> 3 | I18: plg
C19: Rugosidad absoluta "ε" | D19: =VLOOKUP(D9,Tuberías!$B$3:$C$8,2,FALSE) -> 0.25 | E19: mm | G19: Rugosidad absoluta "ε" | H19: =VLOOKUP(H9,Tuberías!$B$3:$C$8,2,FALSE) -> 0.03 | I19: mm
C20: Velocidad en la impulsión | D20: =(D13/1000)/(PI()*(D18*0.0254)^2/4) -> 1.754244659 | E20: m/s | G20: Velocidad en la impulsión | H20: =(H13/1000)/(PI()*(H18*0.0254)^2/4) -> 1.218225458 | I20: m/s
C21: u | D21: =VLOOKUP(D7,'Prop. Agua'!$A$3:$H$16,6,FALSE) -> 1.139e-06 | E21: m2/s | G21: u | H21: =VLOOKUP(D7,'Prop. Agua'!$A$3:$H$16,6,FALSE) -> 1.139e-06 | I21: m2/s
C22: Re | D22: =D20*($D$18*0.0254)/$D$21 -> 97800.29486 | E22: - | G22: Re | H22: =H20*($H$18*0.0254)/$H$21 -> 81500.24572 | I22: -
C23: Coeficiente de fricción "f" | D23: =ffriccion(D19/1000,D22,D18*0.0254) -> 0.02928977077 | E23: - | G23: Coeficiente de fricción "f" | H23: =ffriccion(H19/1000,H22,H18*0.0254) -> 0.0204273244 | I23: -
C24: Pérdidas por fricción | D24: =D23*D10/(D18*0.0254)*D20^2/(2*9.81) -> 0.2459815237 | E24: m | G24: Pérdidas por fricción | H24: =H23*H10/(H18*0.0254)*H20^2/(2*9.81) -> 1.013871365 | I24: m
C26: Suma de K de accesorio | D26: =SUM('K accesorios'!C3:C19) -> 4.2 | G26: Suma de K de accesorio | H26: =SUM('K accesorios'!D3:D19) -> 4.8
C27: Pérdidas locales | D27: =D26*'Linea de impulsión'!D20^2/(2*9.81) -> 0.6587651457 | E27: m | G27: Pérdidas locales | H27: =H26*'Linea de impulsión'!H20^2/(2*9.81) -> 0.3630760283 | I27: m
C29: Pérdidas de energía | D29: =D24+D27 -> 0.9047466695 | E29: m | G29: Pérdidas de energía | H29: =H24+H27 -> 1.376947394 | I29: m

Sheet Pozo humedo
B2: DIMENSIONAMIENTO POZO HÚMEDO DEL BOMBEO DE AGUA RESIDUAL
C5: DATOS DE ENTRADA DEL POZO HÚMEDO
C6: Tiempo del ciclo | D6: ='Datos de entrada'!F14 -> 15 | E6: min
C7: (CT) Cota terreno | D7: ='Datos de entrada'!F9 -> 45 | E7: msnm | K7: CT: | L7: =D7 -> 45
C8: (CAF) Cota Batea entrada afluente | D8: ='Datos de entrada'!F10 -> 43.63 | E8: msnm
C9: Sumergencia mínima de la bomba | D9: =IFERROR(IF(VLOOKUP("X",'Bombas coincidentes'!$B$17:$M$35,10,FALSE)/1000>0.5,VLOOKUP("X",'Bombas coincidentes'!$B$17:$M$35,10,FALSE)/1000,0.5),0.5) -> 0.5 | E9: m
C11: POZO HÚMEDO | H11: CAF: | I11: =D8 -> 43.63
C12: Volumen Requerido | D12: =Vol(Q,D6) -> 1.25 | E12: m3 | K12: NMax | L12: =D15 -> 43.4
C13: Diámetro | D13: =Dpozo(D12) -> 1.2 | E13: m | K13: NA | L13: =D16 -> 43.35
C14: h3 (altura útil) | D14: =ROUNDUP(hpozo(D12,D13),1) -> 1.2 | E14: m
C15: (NMax) Nivel de Alarma Aguas Máximas | D15: =ROUND(D8-0.2,1) -> 43.4 | E15: msnm
C16: (NA) Nivel de Arranque | D16: =D15-0.05 -> 43.35 | E16: msnm | K16: NP | L16: =D17 -> 42.15
C17: (NP) Nivel de Parada | D17: =D16-D14 -> 42.15 | E17: msnm | K17: NMin | L17: =D18 -> 42.1
C18: (NMin) Nivel de Alarma Aguas Mínimas | D18: =D17-0.05 -> 42.1 | E18: msnm
C19: (CF) Cota fondo pozo | D19: =D18-D9 -> 41.6 | E19: msnm | K19: CF | L19: =D19 -> 41.6
C20: Altura total del pozo húmedo | D20: =D7-D19 -> 3.4 | E20: m

Sheet Optimización
B2: OPTIMIZACIÓN | I2: mm | J2: in | K2: 1 | L2: 2 | N2: No. De opciones | P2: =COUNT(C17:C56) -> 19 | R2: COSTOS | AA2: PRESUPUESTO PRELIMINAR
I3: 32 | J3: 1.25 | K3: =IF(AND(I3>'Linea de impulsión'!$D$17,I3<'Linea de impulsión'!$D$16),"1","") ->  | L3: =IF(AND(I3>'Linea de impulsión'!$H$17,I3<'Linea de impulsión'!$H$16),"1","") ->  | N3: Impulsión 1 | O3: HD | P3: 2.5 | R3: BOMBA | S3: =VLOOKUP(N6,$B$17:$G$56,6,FALSE) -> 3700000 | V3: Potencia útil | X3: ='Bombas coincidentes'!J11 -> 0.3882018802 | Y3: kW | AB3: Nota: El presente presupuesto es una base para determinar el costo del proyecto óptimo por lo cual no tiene en cuenta los costos de excavación, demoliciones o reparaciones y por lo tanto no se debe tomar como presupuesto final del proyecto.
I4: 40 | J4: 1.5 | K4: =IF(AND(I4>'Linea de impulsión'!$D$17,I4<'Linea de impulsión'!$D$16),"1","") ->  | L4: =IF(AND(I4>'Linea de impulsión'!$H$17,I4<'Linea de impulsión'!$H$16),"1","") ->  | N4: Impulsión 2 | O4: GRP | P4: 3 | R4: ENERGÍA | S4: =VLOOKUP(N6,$B$17:$G$56,5,FALSE) -> 21664964.11 | V4: Tiempo del ciclo requerido | X4: ='Datos de entrada'!F14 -> 15 | Y4: min
I5: 50 | J5: 2 | K5: =IF(AND(I5>'Linea de impulsión'!$D$17,I5<'Linea de impulsión'!$D$16),"1","") ->  | L5: =IF(AND(I5>'Linea de impulsión'!$H$17,I5<'Linea de impulsión'!$H$16),"1","") ->  | N5: BOMBA | R5: TUBERÍA 1 | S5: =P30 -> 95144.4 | V5: Horas de bombeo en 1 año | X5: =(((60/X4)*(X4/2))/60)*24*365 -> 4380 | Y5: hr/año | AB5: COSTOS DE LA BOMBA ÓPTIMA
I6: 65 | J6: 2.5 | K6: =IF(AND(I6>'Linea de impulsión'!$D$17,I6<'Linea de impulsión'!$D$16),"1","") -> 1 | L6: =IF(AND(I6>'Linea de impulsión'!$H$17,I6<'Linea de impulsión'!$H$16),"1","") -> 1 | N6: DRV/A50-155-1.8M | R6: TUBERÍA 2 | S6: =Y30 -> 224640 | V6: Horas de bombeo en el periodo | X6: =X5*'Datos de entrada'!F16 -> 87600 | Y6: hr/periodo | AB6: MODELO | AC6: EFICIENCIA | AD6: POTENCIA | AE6: COSTO ENERGÍA | AF6: COSTO ENERGÍA (VPN) | AG6: COSTO DE ADQUISICIÓN
C7: Bomba Óptima | E7: DRV/A50-155-1.8M | I7: 80 | J7: 3 | K7: =IF(AND(I7>'Linea de impulsión'!$D$17,I7<'Linea de impulsión'!$D$16),"1","") ->  | L7: =IF(AND(I7>'Linea de impulsión'!$H$17,I7<'Linea de impulsión'!$H$16),"1","") -> 1 | R7: TOTAL | S7: =SUM(S3:S6) -> 25684748.51 | AC7: [%] | AD7: kW | AE7: $/año | AF7: $/periodo | AG7: $
C8: Material impulsión 1 | E8: HD | I8: 100 | J8: 4 | K8: =IF(AND(I8>'Linea de impulsión'!$D$17,I8<'Linea de impulsión'!$D$16),"1","") ->  | L8: =IF(AND(I8>'Linea de impulsión'!$H$17,I8<'Linea de impulsión'!$H$16),"1","") ->  | AB8: =E7 -> DRV/A50-155-1.8M | AC8: =VLOOKUP(AB8,$B$17:$G$56,2,FALSE) -> 74.553 | AD8: =VLOOKUP(AB8,$B$17:$G$56,3,FALSE) -> 0.5207059141 | AE8: =VLOOKUP(AB8,$B$17:$G$56,4,FALSE) -> 1824553.523 | AF8: =VLOOKUP(AB8,$B$17:$G$56,5,FALSE) -> 21664964.11 | AG8: =VLOOKUP(AB8,$B$17:$G$56,6,FALSE) -> 3700000
C9: Material impulsión 2 | E9: GRP | J9: MATERIALES POR TUBERÍA DE IMPULSIÓN | K9: ACERO | L9: PVC
C10: Diámetro impulsión 1 | E10: 2.5 | K10: HD | L10: GRP | AB10: COSTOS DE LAS TUBERÍAS ÓPTIMAS
C11: Diámetro impulsión 2 | E11: 3 | L11: CCP | AB11: DESCRIPCIÓN | AC11: UNIDAD | AD11: CANTIDAD | AE11: VALOR UNITARIO SUMINISTROS | AF11: VALOR UNITARIO INSTALACIÓN | AG11: VALOR UNITARIO TOTAL | AH11: VALOR TOTAL
C12: Costo Total del proyecto | E12: 25684748.51 | L12: PEAD
AB13: IMPULSIÓN 1
I14: IMPULSIÓN 1 | R14: IMPULSIÓN 2 | AB14: =J18 -> Tubería 2.5" | AC14: =K18 -> ml | AD14: =L18 -> 3.4 | AE14: 6003 | AF14: 6003 | AG14: 12006 | AH14: 40820.4
B15: Modelo | C15: Eficiencia | D15: Potencia | E15: Costo energía | F15: Costo energía (VPN) | G15: Costo de adquisición | I15: MATERIAL | J15: ='Linea de impulsión'!D9 -> HD | K15: =HLOOKUP(J15,APU!$A$2:$G$3,2,FALSE) -> 7 | M15: DIÁMETRO | N15: ='Linea de impulsión'!D18 -> 2.5 | R15: MATERIAL | S15: ='Linea de impulsión'!H9 -> GRP | T15: =HLOOKUP(S15,APU!$A$2:$G$3,2,FALSE) -> 3 | V15: DIÁMETRO | W15: ='Linea de impulsión'!H18 -> 3
C16: [%] | D16: kW | E16: $/año | F16: $/periodo | G16: $ | I16: ÍTEM | K16: UNIDAD | L16: CANTIDAD | M16: VALOR UNITARIO SUMINISTROS | N16: VALOR UNITARIO INSTALACIÓN | O16: VALOR UNITARIO TOTAL | P16: VALOR TOTAL | R16: ÍTEM | T16: UNIDAD | U16: CANTIDAD | V16: VALOR UNITARIO SUMINISTROS | W16: VALOR UNITARIO INSTALACIÓN | X16: VALOR UNITARIO TOTAL | Y16: VALOR TOTAL
B17: =IF('Bombas coincidentes'!C17="","",'Bombas coincidentes'!C17) -> DRV/A50-155-1.8M | C17: =IF(B17="","",'Bombas coincidentes'!M17) -> 74.553 | D17: =IF(C17="","",$X$3/(C17/100)) -> 0.5207059141 | E17: =IF(D17="","",D17*'Datos de entrada'!$F$15*$X$5) -> 1824553.523 | F17: =IF(E17="","",VPN(E17,'Datos de entrada'!$F$17,'Datos de entrada'!$F$18,'Datos de entrada'!$F$16)) -> 21664964.11 | G17: =IF(F17="","",VLOOKUP(B17,'Base de datos'!$C$4:$AI$113,33,FALSE)) -> 3700000
B18: =IF('Bombas coincidentes'!C18="","",'Bombas coincidentes'!C18) -> DRV/A50-140-1.8M | C18: =IF(B18="","",'Bombas coincidentes'!M18) -> 69.258 | D18: =IF(C18="","",$X$3/(C18/100)) -> 0.5605155797 | E18: =IF(D18="","",D18*'Datos de entrada'!$F$15*$X$5) -> 1964046.591 | F18: =IF(E18="","",VPN(E18,'Datos de entrada'!$F$17,'Datos de entrada'!$F$18,'Datos de entrada'!$F$16)) -> 23321321.28 | G18: =IF(F18="","",VLOOKUP(B18,'Base de datos'!$C$4:$AI$113,33,FALSE)) -> 3600000 | I18: Tubería | J18: =CONCATENATE(I18," ",$N$15,"""") -> Tubería 2.5" | K18: ml | L18: ='Linea de impulsión'!D10 -> 3.4 | M18: =VLOOKUP(J18,APU!$A$4:$G$51,$K$15,FALSE) -> 6003 | N18: =VLOOKUP(J18,APU!$I$4:$O$51,$K$15,FALSE) -> 6003 | O18: =M18+N18 -> 12006 | P18: =O18*L18 -> 40820.4 | R18: Tubería | S18: =CONCATENATE(R18," ",$W$15,"""") -> Tubería 3" | T18: ml | U18: ='Linea de impulsión'!H10 -> 50 | V18: =VLOOKUP(S18,APU!$A$4:$G$51,$T$15,FALSE) -> 2004 | W18: =VLOOKUP(S18,APU!$I$4:$O$51,$T$15,FALSE) -> 2004 | X18: =V18+W18 -> 4008 | Y18: =X18*U18 -> 200400
B19: =IF('Bombas coincidentes'!C19="","",'Bombas coincidentes'!C19) -> DRV/A50-140-1.4 | C19: =IF(B19="","",'Bombas coincidentes'!M19) -> 69.258 | D19: 0.5605155797 | E19: =IF(D19="","",D19*'Datos de entrada'!$F$15*$X$5) -> 1964046.591 | F19: =IF(E19="","",VPN(E19,'Datos de entrada'!$F$17,'Datos de entrada'!$F$18,'Datos de entrada'!$F$16)) -> 23321321.28 | G19: =IF(F19="","",VLOOKUP(B19,'Base de datos'!$C$4:$AI$113,33,FALSE)) -> 3800000 | I19: Codo 90 radio corto | J19: =CONCATENATE(I19," ",$N$15,"""") -> Codo 90 radio corto 2.5" | K19: un | L19: ='Datos de entrada'!F27 -> 0 | M19: =VLOOKUP(J19,APU!$A$4:$G$51,$K$15,FALSE) -> 6009 | N19: =VLOOKUP(J19,APU!$I$4:$O$51,$K$15,FALSE) -> 6009 | O19: 12018 | P19: 0 | R19: Codo 90 radio corto | S19: =CONCATENATE(R19," ",$W$15,"""") -> Codo 90 radio corto 3" | T19: un | U19: ='Datos de entrada'!G27 -> 3 | V19: =VLOOKUP(S19,APU!$A$4:$G$51,$T$15,FALSE) -> 2010 | W19: =VLOOKUP(S19,APU!$I$4:$O$51,$T$15,FALSE) -> 2010 | X19: 4020 | Y19: 12060
B20: =IF('Bombas coincidentes'!C20="","",'Bombas coincidentes'!C20) -> DRV/A65-119-2.3 | C20: =IF(B20="","",'Bombas coincidentes'!M20) -> 66.083 | D20: 0.5874459092 | E20: =IF(D20="","",D20*'Datos de entrada'!$F$15*$X$5) -> 2058410.466 | F20: =IF(E20="","",VPN(E20,'Datos de entrada'!$F$17,'Datos de entrada'!$F$18,'Datos de entrada'!$F$16)) -> 24441809.08 | G20: =IF(F20="","",VLOOKUP(B20,'Base de datos'!$C$4:$AI$113,33,FALSE)) -> 4200000 | I20: Codo 90 radio medio | J20: Codo 90 radio medio 2.5" | K20: un | L20: ='Datos de entrada'!F28 -> 0 | M20: =VLOOKUP(J20,APU!$A$4:$G$51,$K$15,FALSE) -> 6015 | N20: =VLOOKUP(J20,APU!$I$4:$O$51,$K$15,FALSE) -> 6015 | O20: 12030 | P20: 0 | R20: Codo 90 radio medio | S20: Codo 90 radio medio 3" | T20: un | U20: ='Datos de entrada'!G28 -> 0 | V20: =VLOOKUP(S20,APU!$A$4:$G$51,$T$15,FALSE) -> 2016 | W20: =VLOOKUP(S20,APU!$I$4:$O$51,$T$15,FALSE) -> 2016 | X20: 4032 | Y20: 0
B21: =IF('Bombas coincidentes'!C21="","",'Bombas coincidentes'!C21) -> FEKA 2500.4T | C21: =IF(B21="","",'Bombas coincidentes'!M21) -> 65.769 | D21: 0.5902505438 | E21: =IF(D21="","",D21*'Datos de entrada'!$F$15*$X$5) -> 2068237.906 | F21: =IF(E21="","",VPN(E21,'Datos de entrada'!$F$17,'Datos de entrada'!$F$18,'Datos de entrada'!$F$16)) -> 24558501.26 | G21: =IF(F21="","",VLOOKUP(B21,'Base de datos'!$C$4:$AI$113,33,FALSE)) -> 4300000 | I21: Codo 90 gran radio | J21: Codo 90 gran radio 2.5" | K21: un | L21: ='Datos de entrada'!F29 -> 1 | M21: =VLOOKUP(J21,APU!$A$4:$G$51,$K$15,FALSE) -> 6021 | N21: =VLOOKUP(J21,APU!$I$4:$O$51,$K$15,FALSE) -> 6021 | O21: 12042 | P21: 12042 | R21: Codo 90 gran radio | S21: Codo 90 gran radio 3" | T21: un | U21: ='Datos de entrada'!G29 -> 0 | V21: =VLOOKUP(S21,APU!$A$4:$G$51,$T$15,FALSE) -> 2022 | W21: =VLOOKUP(S21,APU!$I$4:$O$51,$T$15,FALSE) -> 2022 | X21: 4044 | Y21: 0
B22: =IF('Bombas coincidentes'!C22="","",'Bombas coincidentes'!C22) -> ARS 50-14MI/1,4 | C22: =IF(B22="","",'Bombas coincidentes'!M22) -> 65.504 | D22: 0.5926384345 | E22: =IF(D22="","",D22*'Datos de entrada'!$F$15*$X$5) -> 2076605.075 | F22: =IF(E22="","",VPN(E22,'Datos de entrada'!$F$17,'Datos de entrada'!$F$18,'Datos de entrada'!$F$16)) -> 24657854.01 | G22: =IF(F22="","",VLOOKUP(B22,'Base de datos'!$C$4:$AI$113,33,FALSE)) -> 4800000 | I22: Codo 45 | J22: Codo 45 2.5" | K22: un | L22: ='Datos de entrada'!F30 -> 0 | M22: =VLOOKUP(J22,APU!$A$4:$G$51,$K$15,FALSE) -> 6027 | N22: =VLOOKUP(J22,APU!$I$4:$O$51,$K$15,FALSE) -> 6027 | O22: 12054 | P22: 0 | R22: Codo 45 | S22: Codo 45 3" | T22: un | U22: ='Datos de entrada'!G30 -> 2 | V22: =VLOOKUP(S22,APU!$A$4:$G$51,$T$15,FALSE) -> 2028 | W22: =VLOOKUP(S22,APU!$I$4:$O$51,$T$15,FALSE) -> 2028 | X22: 4056 | Y22: 8112
B23: =IF('Bombas coincidentes'!C23="","",'Bombas coincidentes'!C23) -> AS0630 S13/4D | C23: =IF(B23="","",'Bombas coincidentes'!M23) -> 64.159 | D23: 0.6050622363 | E23: =IF(D23="","",D23*'Datos de entrada'!$F$15*$X$5) -> 2120138.076 | F23: =IF(E23="","",VPN(E23,'Datos de entrada'!$F$17,'Datos de entrada'!$F$18,'Datos de entrada'!$F$16)) -> 25174770.01 | G23: =IF(F23="","",VLOOKUP(B23,'Base de datos'!$C$4:$AI$113,33,FALSE)) -> 3600000 | I23: Tee | J23: Tee 2.5" | K23: un | L23: ='Datos de entrada'!F31+'Datos de entrada'!F32 -> 2 | M23: =VLOOKUP(J23,APU!$A$4:$G$51,$K$15,FALSE) -> 6033 | N23: =VLOOKUP(J23,APU!$I$4:$O$51,$K$15,FALSE) -> 6033 | O23: 12066 | P23: 24132 | R23: Tee | S23: Tee 3" | T23: un | U23: ='Datos de entrada'!G31+'Datos de entrada'!G32 -> 1 | V23: =VLOOKUP(S23,APU!$A$4:$G$51,$T$15,FALSE) -> 2034 | W23: =VLOOKUP(S23,APU!$I$4:$O$51,$T$15,FALSE) -> 2034 | X23: 4068 | Y23: 4068
B24: =IF('Bombas coincidentes'!C24="","",'Bombas coincidentes'!C24) -> FEKA 3030.2T | C24: =IF(B24="","",'Bombas coincidentes'!M24) -> 64.107 | D24: 0.6055530288 | E24: =IF(D24="","",D24*'Datos de entrada'!$F$15*$X$5) -> 2121857.813 | F24: =IF(E24="","",VPN(E24,'Datos de entrada'!$F$17,'Datos de entrada'!$F$18,'Datos de entrada'!$F$16)) -> 25195190.37 | G24: =IF(F24="","",VLOOKUP(B24,'Base de datos'!$C$4:$AI$113,33,FALSE)) -> 4800000 | I24: Uniones | J24: Uniones 2.5" | K24: un | L24: ='Datos de entrada'!F33 -> 1 | M24: =VLOOKUP(J24,APU!$A$4:$G$51,$K$15,FALSE) -> 6039 | N24: =VLOOKUP(J24,APU!$I$4:$O$51,$K$15,FALSE) -> 6039 | O24: 12078 | P24: 12078 | R24: Uniones | S24: Uniones 3" | T24: un | U24: ='Datos de entrada'!G33 -> 0 | V24: =VLOOKUP(S24,APU!$A$4:$G$51,$T$15,FALSE) -> 2040 | W24: =VLOOKUP(S24,APU!$I$4:$O$51,$T$15,FALSE) -> 2040 | X24: 4080 | Y24: 0
B25: =IF('Bombas coincidentes'!C25="","",'Bombas coincidentes'!C25) -> FEKA 1400 M | C25: =IF(B25="","",'Bombas coincidentes'!M25) -> 62.569 | D25: 0.6204380447 | E25: =IF(D25="","",D25*'Datos de entrada'!$F$15*$X$5) -> 2174014.908 | F25: =IF(E25="","",VPN(E25,'Datos de entrada'!$F$17,'Datos de entrada'!$F$18,'Datos de entrada'!$F$16)) -> 25814509.89 | G25: =IF(F25="","",VLOOKUP(B25,'Base de datos'!$C$4:$AI$113,33,FALSE)) -> 3400000 | I25: Yee | J25: Yee 2.5" | K25: un | L25: ='Datos de entrada'!F34+'Datos de entrada'!F35 -> 0 | M25: =VLOOKUP(J25,APU!$A$4:$G$51,$K$15,FALSE) -> 6045 | N25: =VLOOKUP(J25,APU!$I$4:$O$51,$K$15,FALSE) -> 6045 | O25: 12090 | P25: 0 | R25: Yee | S25: Yee 3" | T25: un | U25: ='Datos de entrada'!G34+'Datos de entrada'!G35 -> 0 | V25: =VLOOKUP(S25,APU!$A$4:$G$51,$T$15,FALSE) -> 2046 | W25: =VLOOKUP(S25,APU!$I$4:$O$51,$T$15,FALSE) -> 2046 | X25: 4092 | Y25: 0
B26: =IF('Bombas coincidentes'!C26="","",'Bombas coincidentes'!C26) -> AS0840 S12/2W | C26: =IF(B26="","",'Bombas coincidentes'!M26) -> 62.511 | D26: 0.6210137098 | E26: =IF(D26="","",D26*'Datos de entrada'!$F$15*$X$5) -> 2176032.039 | F26: =IF(E26="","",VPN(E26,'Datos de entrada'!$F$17,'Datos de entrada'!$F$18,'Datos de entrada'!$F$16)) -> 25838461.54 | G26: =IF(F26="","",VLOOKUP(B26,'Base de datos'!$C$4:$AI$113,33,FALSE)) -> 5200000 | I26: Válvula de globo | J26: Válvula de globo 2.5" | K26: un | L26: ='Datos de entrada'!F23 -> 0 | M26: =VLOOKUP(J26,APU!$Q$3:$S$26,2,FALSE) -> 1003 | N26: =VLOOKUP(J26,APU!$Q$3:$S$26,3,FALSE) -> 2003 | O26: 3006 | P26: 0 | R26: Válvula de globo | S26: Válvula de globo 3" | T26: un | U26: ='Datos de entrada'!G23 -> 0 | V26: =VLOOKUP(S26,APU!$Q$3:$S$26,2,FALSE) -> 1004 | W26: =VLOOKUP(S26,APU!$Q$3:$S$26,3,FALSE) -> 2004 | X26: 3008 | Y26: 0
B27: =IF('Bombas coincidentes'!C27="","",'Bombas coincidentes'!C27) -> ARS 80-18V/1,7 | C27: =IF(B27="","",'Bombas coincidentes'!M27) -> 61.815 | D27: 0.6280059535 | E27: =IF(D27="","",D27*'Datos de entrada'!$F$15*$X$5) -> 2200532.861 | F27: =IF(E27="","",VPN(E27,'Datos de entrada'!$F$17,'Datos de entrada'!$F$18,'Datos de entrada'!$F$16)) -> 26129387.19 | G27: =IF(F27="","",VLOOKUP(B27,'Base de datos'!$C$4:$AI$113,33,FALSE)) -> 4300000 | I27: Válvula de mariposa | J27: Válvula de mariposa 2.5" | K27: un | L27: ='Datos de entrada'!F24 -> 0 | M27: =VLOOKUP(J27,APU!$Q$3:$S$26,2,FALSE) -> 1009 | N27: =VLOOKUP(J27,APU!$Q$3:$S$26,3,FALSE) -> 2009 | O27: 3018 | P27: 0 | R27: Válvula de mariposa | S27: Válvula de mariposa 3" | T27: un | U27: ='Datos de entrada'!G24 -> 0 | V27: =VLOOKUP(S27,APU!$Q$3:$S$26,2,FALSE) -> 1010 | W27: =VLOOKUP(S27,APU!$Q$3:$S$26,3,FALSE) -> 2010 | X27: 3020 | Y27: 0
B28: =IF('Bombas coincidentes'!C28="","",'Bombas coincidentes'!C28) -> ARS 50-16V/1,8 | C28: =IF(B28="","",'Bombas coincidentes'!M28) -> 54.322 | D28: 0.7146310522 | E28: =IF(D28="","",D28*'Datos de entrada'!$F$15*$X$5) -> 2504067.207 | F28: =IF(E28="","",VPN(E28,'Datos de entrada'!$F$17,'Datos de entrada'!$F$18,'Datos de entrada'!$F$16)) -> 29733589.87 | G28: =IF(F28="","",VLOOKUP(B28,'Base de datos'!$C$4:$AI$113,33,FALSE)) -> 3100000 | I28: Válvula de Cheque | J28: Válvula de Cheque 2.5" | K28: un | L28: ='Datos de entrada'!F25 -> 1 | M28: =VLOOKUP(J28,APU!$Q$3:$S$26,2,FALSE) -> 1015 | N28: =VLOOKUP(J28,APU!$Q$3:$S$26,3,FALSE) -> 2015 | O28: 3030 | P28: 3030 | R28: Válvula de Cheque | S28: Válvula de Cheque 3" | T28: un | U28: ='Datos de entrada'!G25 -> 0 | V28: =VLOOKUP(S28,APU!$Q$3:$S$26,2,FALSE) -> 1016 | W28: =VLOOKUP(S28,APU!$Q$3:$S$26,3,FALSE) -> 2016 | X28: 3032 | Y28: 0
B29: =IF('Bombas coincidentes'!C29="","",'Bombas coincidentes'!C29) -> AS0840 S12/2D | C29: =IF(B29="","",'Bombas coincidentes'!M29) -> 52.511 | D29: 0.7392772565 | E29: =IF(D29="","",D29*'Datos de entrada'!$F$15*$X$5) -> 2590427.507 | F29: =IF(E29="","",VPN(E29,'Datos de entrada'!$F$17,'Datos de entrada'!$F$18,'Datos de entrada'!$F$16)) -> 30759042.28 | G29: =IF(F29="","",VLOOKUP(B29,'Base de datos'!$C$4:$AI$113,33,FALSE)) -> 5400000 | I29: Válvula de compuerta | J29: Válvula de compuerta 2.5" | K29: un | L29: ='Datos de entrada'!F26 -> 1 | M29: =VLOOKUP(J29,APU!$Q$3:$S$26,2,FALSE) -> 1021 | N29: =VLOOKUP(J29,APU!$Q$3:$S$26,3,FALSE) -> 2021 | O29: 3042 | P29: 3042 | R29: Válvula de compuerta | S29: Válvula de compuerta 3" | T29: un | U29: ='Datos de entrada'!G26 -> 0 | V29: =VLOOKUP(S29,APU!$Q$3:$S$26,2,FALSE) -> 1022 | W29: =VLOOKUP(S29,APU!$Q$3:$S$26,3,FALSE) -> 2022 | X29: 3044 | Y29: 0
B30: =IF('Bombas coincidentes'!C30="","",'Bombas coincidentes'!C30) -> ARS 65-18V/1,7 | C30: =IF(B30="","",'Bombas coincidentes'!M30) -> 52.109 | D30: 0.7449804835 | E30: =IF(D30="","",D30*'Datos de entrada'!$F$15*$X$5) -> 2610411.614 | F30: =IF(E30="","",VPN(E30,'Datos de entrada'!$F$17,'Datos de entrada'!$F$18,'Datos de entrada'!$F$16)) -> 30996335.93 | G30: =IF(F30="","",VLOOKUP(B30,'Base de datos'!$C$4:$AI$113,33,FALSE)) -> 4100000 | N30: TOTAL | P30: =SUM(P18:P29) -> 95144.4 | W30: TOTAL | Y30: =SUM(Y18:Y29) -> 224640
B31: =IF('Bombas coincidentes'!C31="","",'Bombas coincidentes'!C31) -> DRV/A65-182-1.4 | C31: =IF(B31="","",'Bombas coincidentes'!M31) -> 51.446 | D31: 0.75458127 | E31: =IF(D31="","",D31*'Datos de entrada'!$F$15*$X$5) -> 2644052.77 | F31: =IF(E31="","",VPN(E31,'Datos de entrada'!$F$17,'Datos de entrada'!$F$18,'Datos de entrada'!$F$16)) -> 31395794.99 | G31: =IF(F31="","",VLOOKUP(B31,'Base de datos'!$C$4:$AI$113,33,FALSE)) -> 5600000
B32: =IF('Bombas coincidentes'!C32="","",'Bombas coincidentes'!C32) -> DRV/A80-182-1.4 | C32: =IF(B32="","",'Bombas coincidentes'!M32) -> 51.0118 | D32: 0.7610040817 | E32: =IF(D32="","",D32*'Datos de entrada'!$F$15*$X$5) -> 2666558.302 | F32: =IF(E32="","",VPN(E32,'Datos de entrada'!$F$17,'Datos de entrada'!$F$18,'Datos de entrada'!$F$16)) -> 31663028.34 | G32: =IF(F32="","",VLOOKUP(B32,'Base de datos'!$C$4:$AI$113,33,FALSE)) -> 6000000
B33: =IF('Bombas coincidentes'!C33="","",'Bombas coincidentes'!C33) -> DRV/A65-182-1.2M | C33: =IF(B33="","",'Bombas coincidentes'!M33) -> 50.6676 | D33: 0.7661738076 | E33: =IF(D33="","",D33*'Datos de entrada'!$F$15*$X$5) -> 2684673.022 | F33: =IF(E33="","",VPN(E33,'Datos de entrada'!$F$17,'Datos de entrada'!$F$18,'Datos de entrada'!$F$16)) -> 31878124.66 | G33: =IF(F33="","",VLOOKUP(B33,'Base de datos'!$C$4:$AI$113,33,FALSE)) -> 5300000
B34: =IF('Bombas coincidentes'!C34="","",'Bombas coincidentes'!C34) -> DRV/A80-182-1.2M | C34: =IF(B34="","",'Bombas coincidentes'!M34) -> 50.4997 | D34: 0.768721161 | E34: =IF(D34="","",D34*'Datos de entrada'!$F$15*$X$5) -> 2693598.948 | F34: =IF(E34="","",VPN(E34,'Datos de entrada'!$F$17,'Datos de entrada'!$F$18,'Datos de entrada'!$F$16)) -> 31984112.17 | G34: =IF(F34="","",VLOOKUP(B34,'Base de datos'!$C$4:$AI$113,33,FALSE)) -> 5900000
B35: =IF('Bombas coincidentes'!C35="","",'Bombas coincidentes'!C35) -> AS0830 S13/4D | C35: =IF(B35="","",'Bombas coincidentes'!M35) -> 48.78 | D35: 0.7958218126 | E35: =IF(D35="","",D35*'Datos de entrada'!$F$15*$X$5) -> 2788559.631 | F35: =IF(E35="","",VPN(E35,'Datos de entrada'!$F$17,'Datos de entrada'!$F$18,'Datos de entrada'!$F$16)) -> 33111686.53 | G35: =IF(F35="","",VLOOKUP(B35,'Base de datos'!$C$4:$AI$113,33,FALSE)) -> 4800000
B36: =IF('Bombas coincidentes'!C36="","",'Bombas coincidentes'!C36) ->  | C36: =IF(B36="","",'Bombas coincidentes'!M36) ->  | E36: =IF(D36="","",D36*'Datos de entrada'!$F$15*$X$5) ->  | F36: =IF(E36="","",VPN(E36,'Datos de entrada'!$F$17,'Datos de entrada'!$F$18,'Datos de entrada'!$F$16)) ->  | G36: =IF(F36="","",VLOOKUP(B36,'Base de datos'!$C$4:$AI$113,33,FALSE)) -> 
B37: =IF('Bombas coincidentes'!C37="","",'Bombas coincidentes'!C37) ->  | C37: =IF(B37="","",'Bombas coincidentes'!M37) ->  | E37: =IF(D37="","",D37*'Datos de entrada'!$F$15*$X$5) ->  | F37: =IF(E37="","",VPN(E37,'Datos de entrada'!$F$17,'Datos de entrada'!$F$18,'Datos de entrada'!$F$16)) ->  | G37: =IF(F37="","",VLOOKUP(B37,'Base de datos'!$C$4:$AI$113,33,FALSE)) -> 
B38: =IF('Bombas coincidentes'!C38="","",'Bombas coincidentes'!C38) ->  | C38: =IF(B38="","",'Bombas coincidentes'!M38) ->  | E38: =IF(D38="","",D38*'Datos de entrada'!$F$15*$X$5) ->  | F38: =IF(E38="","",VPN(E38,'Datos de entrada'!$F$17,'Datos de entrada'!$F$18,'Datos de entrada'!$F$16)) ->  | G38: =IF(F38="","",VLOOKUP(B38,'Base de datos'!$C$4:$AI$113,33,FALSE)) -> 
B39: =IF('Bombas coincidentes'!C39="","",'Bombas coincidentes'!C39) ->  | C39: =IF(B39="","",'Bombas coincidentes'!M39) ->  | E39: =IF(D39="","",D39*'Datos de entrada'!$F$15*$X$5) ->  | F39: =IF(E39="","",VPN(E39,'Datos de entrada'!$F$17,'Datos de entrada'!$F$18,'Datos de entrada'!$F$16)) ->  | G39: =IF(F39="","",VLOOKUP(B39,'Base de datos'!$C$4:$AI$113,33,FALSE)) -> 
B40: =IF('Bombas coincidentes'!C40="","",'Bombas coincidentes'!C40) ->  | C40: =IF(B40="","",'Bombas coincidentes'!M40) ->  | E40: =IF(D40="","",D40*'Datos de entrada'!$F$15*$X$5) ->  | F40: =IF(E40="","",VPN(E40,'Datos de entrada'!$F$17,'Datos de entrada'!$F$18,'Datos de entrada'!$F$16)) ->  | G40: =IF(F40="","",VLOOKUP(B40,'Base de datos'!$C$4:$AI$113,33,FALSE)) -> 
B41: =IF('Bombas coincidentes'!C41="","",'Bombas coincidentes'!C41) ->  | C41: =IF(B41="","",'Bombas coincidentes'!M41) ->  | E41: =IF(D41="","",D41*'Datos de entrada'!$F$15*$X$5) ->  | F41: =IF(E41="","",VPN(E41,'Datos de entrada'!$F$17,'Datos de entrada'!$F$18,'Datos de entrada'!$F$16)) ->  | G41: =IF(F41="","",VLOOKUP(B41,'Base de datos'!$C$4:$AI$113,33,FALSE)) -> 
B42: =IF('Bombas coincidentes'!C42="","",'Bombas coincidentes'!C42) ->  | C42: =IF(B42="","",'Bombas coincidentes'!M42) ->  | E42: =IF(D42="","",D42*'Datos de entrada'!$F$15*$X$5) ->  | F42: =IF(E42="","",VPN(E42,'Datos de entrada'!$F$17,'Datos de entrada'!$F$18,'Datos de entrada'!$F$16)) ->  | G42: =IF(F42="","",VLOOKUP(B42,'Base de datos'!$C$4:$AI$113,33,FALSE)) -> 
B43: =IF('Bombas coincidentes'!C43="","",'Bombas coincidentes'!C43) ->  | C43: =IF(B43="","",'Bombas coincidentes'!M43) ->  | E43: =IF(D43="","",D43*'Datos de entrada'!$F$15*$X$5) ->  | F43: =IF(E43="","",VPN(E43,'Datos de entrada'!$F$17,'Datos de entrada'!$F$18,'Datos de entrada'!$F$16)) ->  | G43: =IF(F43="","",VLOOKUP(B43,'Base de datos'!$C$4:$AI$113,33,FALSE)) -> 
B44: =IF('Bombas coincidentes'!C44="","",'Bombas coincidentes'!C44) ->  | C44: =IF(B44="","",'Bombas coincidentes'!M44) ->  | E44: =IF(D44="","",D44*'Datos de entrada'!$F$15*$X$5) ->  | F44: =IF(E44="","",VPN(E44,'Datos de entrada'!$F$17,'Datos de entrada'!$F$18,'Datos de entrada'!$F$16)) ->  | G44: =IF(F44="","",VLOOKUP(B44,'Base de datos'!$C$4:$AI$113,33,FALSE)) -> 
B45: =IF('Bombas coincidentes'!C45="","",'Bombas coincidentes'!C45) ->  | C45: =IF(B45="","",'Bombas coincidentes'!M45) ->  | E45: =IF(D45="","",D45*'Datos de entrada'!$F$15*$X$5) ->  | F45: =IF(E45="","",VPN(E45,'Datos de entrada'!$F$17,'Datos de entrada'!$F$18,'Datos de entrada'!$F$16)) ->  | G45: =IF(F45="","",VLOOKUP(B45,'Base de datos'!$C$4:$AI$113,33,FALSE)) -> 
B46: =IF('Bombas coincidentes'!C46="","",'Bombas coincidentes'!C46) ->  | C46: =IF(B46="","",'Bombas coincidentes'!M46) ->  | E46: =IF(D46="","",D46*'Datos de entrada'!$F$15*$X$5) ->  | F46: =IF(E46="","",VPN(E46,'Datos de entrada'!$F$17,'Datos de entrada'!$F$18,'Datos de entrada'!$F$16)) ->  | G46: =IF(F46="","",VLOOKUP(B46,'Base de datos'!$C$4:$AI$113,33,FALSE)) -> 
B47: =IF('Bombas coincidentes'!C47="","",'Bombas coincidentes'!C47) ->  | C47: =IF(B47="","",'Bombas coincidentes'!M47) ->  | E47: =IF(D47="","",D47*'Datos de entrada'!$F$15*$X$5) ->  | F47: =IF(E47="","",VPN(E47,'Datos de entrada'!$F$17,'Datos de entrada'!$F$18,'Datos de entrada'!$F$16)) ->  | G47: =IF(F47="","",VLOOKUP(B47,'Base de datos'!$C$4:$AI$113,33,FALSE)) -> 
B48: =IF('Bombas coincidentes'!C48="","",'Bombas coincidentes'!C48) ->  | C48: =IF(B48="","",'Bombas coincidentes'!M48) ->  | E48: =IF(D48="","",D48*'Datos de entrada'!$F$15*$X$5) ->  | F48: =IF(E48="","",VPN(E48,'Datos de entrada'!$F$17,'Datos de entrada'!$F$18,'Datos de entrada'!$F$16)) ->  | G48: =IF(F48="","",VLOOKUP(B48,'Base de datos'!$C$4:$AI$113,33,FALSE)) -> 
B49: =IF('Bombas coincidentes'!C49="","",'Bombas coincidentes'!C49) ->  | C49: =IF(B49="","",'Bombas coincidentes'!M49) ->  | E49: =IF(D49="","",D49*'Datos de entrada'!$F$15*$X$5) ->  | F49: =IF(E49="","",VPN(E49,'Datos de entrada'!$F$17,'Datos de entrada'!$F$18,'Datos de entrada'!$F$16)) ->  | G49: =IF(F49="","",VLOOKUP(B49,'Base de datos'!$C$4:$AI$113,33,FALSE)) -> 
B50: =IF('Bombas coincidentes'!C50="","",'Bombas coincidentes'!C50) ->  | C50: =IF(B50="","",'Bombas coincidentes'!M50) ->  | E50: =IF(D50="","",D50*'Datos de entrada'!$F$15*$X$5) ->  | F50: =IF(E50="","",VPN(E50,'Datos de entrada'!$F$17,'Datos de entrada'!$F$18,'Datos de entrada'!$F$16)) ->  | G50: =IF(F50="","",VLOOKUP(B50,'Base de datos'!$C$4:$AI$113,33,FALSE)) -> 
B51: =IF('Bombas coincidentes'!C51="","",'Bombas coincidentes'!C51) ->  | C51: =IF(B51="","",'Bombas coincidentes'!M51) ->  | E51: =IF(D51="","",D51*'Datos de entrada'!$F$15*$X$5) ->  | F51: =IF(E51="","",VPN(E51,'Datos de entrada'!$F$17,'Datos de entrada'!$F$18,'Datos de entrada'!$F$16)) ->  | G51: =IF(F51="","",VLOOKUP(B51,'Base de datos'!$C$4:$AI$113,33,FALSE)) -> 
B52: =IF('Bombas coincidentes'!C52="","",'Bombas coincidentes'!C52) ->  | C52: =IF(B52="","",'Bombas coincidentes'!M52) ->  | E52: =IF(D52="","",D52*'Datos de entrada'!$F$15*$X$5) ->  | F52: =IF(E52="","",VPN(E52,'Datos de entrada'!$F$17,'Datos de entrada'!$F$18,'Datos de entrada'!$F$16)) ->  | G52: =IF(F52="","",VLOOKUP(B52,'Base de datos'!$C$4:$AI$113,33,FALSE)) -> 
B53: =IF('Bombas coincidentes'!C53="","",'Bombas coincidentes'!C53) ->  | C53: =IF(B53="","",'Bombas coincidentes'!M53) ->  | E53: =IF(D53="","",D53*'Datos de entrada'!$F$15*$X$5) ->  | F53: =IF(E53="","",VPN(E53,'Datos de entrada'!$F$17,'Datos de entrada'!$F$18,'Datos de entrada'!$F$16)) ->  | G53: =IF(F53="","",VLOOKUP(B53,'Base de datos'!$C$4:$AI$113,33,FALSE)) -> 
B54: =IF('Bombas coincidentes'!C54="","",'Bombas coincidentes'!C54) ->  | C54: =IF(B54="","",'Bombas coincidentes'!M54) ->  | E54: =IF(D54="","",D54*'Datos de entrada'!$F$15*$X$5) ->  | F54: =IF(E54="","",VPN(E54,'Datos de entrada'!$F$17,'Datos de entrada'!$F$18,'Datos de entrada'!$F$16)) ->  | G54: =IF(F54="","",VLOOKUP(B54,'Base de datos'!$C$4:$AI$113,33,FALSE)) -> 
B55: =IF('Bombas coincidentes'!C55="","",'Bombas coincidentes'!C55) ->  | C55: =IF(B55="","",'Bombas coincidentes'!M55) ->  | E55: =IF(D55="","",D55*'Datos de entrada'!$F$15*$X$5) ->  | F55: =IF(E55="","",VPN(E55,'Datos de entrada'!$F$17,'Datos de entrada'!$F$18,'Datos de entrada'!$F$16)) ->  | G55: =IF(F55="","",VLOOKUP(B55,'Base de datos'!$C$4:$AI$113,33,FALSE)) -> 
B56: =IF('Bombas coincidentes'!C56="","",'Bombas coincidentes'!C56) ->  | C56: =IF(B56="","",'Bombas coincidentes'!M56) ->  | E56: =IF(D56="","",D56*'Datos de entrada'!$F$15*$X$5) ->  | F56: =IF(E56="","",VPN(E56,'Datos de entrada'!$F$17,'Datos de entrada'!$F$18,'Datos de entrada'!$F$16)) ->  | G56: =IF(F56="","",VLOOKUP(B56,'Base de datos'!$C$4:$AI$113,33,FALSE)) -> 
AB57: =J19 -> Codo 90 radio corto 2.5" | AC57: un | AD57: 0 | AE57: 6009 | AF57: 6009 | AG57: 12018 | AH57: 0
AB58: =J20 -> Codo 90 radio medio 2.5" | AC58: =K20 -> un | AD58: =L20 -> 0 | AE58: =M20 -> 6015 | AF58: =N20 -> 6015 | AG58: =O20 -> 12030 | AH58: =P20 -> 0
AB59: Codo 90 gran radio 2.5" | AC59: un | AD59: 1 | AE59: 6021 | AF59: 6021 | AG59: 12042 | AH59: 12042
AB60: Codo 45 2.5" | AC60: un | AD60: 0 | AE60: 6027 | AF60: 6027 | AG60: 12054 | AH60: 0
AB61: Tee 2.5" | AC61: un | AD61: 2 | AE61: 6033 | AF61: 6033 | AG61: 12066 | AH61: 24132
AB62: Uniones 2.5" | AC62: un | AD62: 1 | AE62: 6039 | AF62: 6039 | AG62: 12078 | AH62: 12078
AB63: Yee 2.5" | AC63: un | AD63: 0 | AE63: 6045 | AF63: 6045 | AG63: 12090 | AH63: 0
AB64: Válvula de globo 2.5" | AC64: un | AD64: 0 | AE64: 1003 | AF64: 2003 | AG64: 3006 | AH64: 0
AB65: Válvula de mariposa 2.5" | AC65: un | AD65: 0 | AE65: 1009 | AF65: 2009 | AG65: 3018 | AH65: 0
AB66: Válvula de Cheque 2.5" | AC66: un | AD66: 1 | AE66: 1015 | AF66: 2015 | AG66: 3030 | AH66: 3030
AB67: Válvula de compuerta 2.5" | AC67: un | AD67: 1 | AE67: 1021 | AF67: 2021 | AG67: 3042 | AH67: 3042
AB68: TOTAL IMPULSIÓN 1 | AH68: =SUM(AH14:AH67) -> 95144.4
AB69: IMPULSIÓN 2
AB70: =S18 -> Tubería 3" | AC70: ml | AD70: 50 | AE70: 2004 | AF70: 2004 | AG70: 4008 | AH70: 200400
AB71: Codo 90 radio corto 3" | AC71: un | AD71: 3 | AE71: 2010 | AF71: 2010 | AG71: 4020 | AH71: 12060
AB72: =S20 -> Codo 90 radio medio 3" | AC72: =T20 -> un | AD72: =U20 -> 0 | AE72: =V20 -> 2016 | AF72: =W20 -> 2016 | AG72: =X20 -> 4032 | AH72: =Y20 -> 0
AB73: Codo 90 gran radio 3" | AC73: un | AD73: 0 | AE73: 2022 | AF73: 2022 | AG73: 4044 | AH73: 0
AB74: Codo 45 3" | AC74: un | AD74: 2 | AE74: 2028 | AF74: 2028 | AG74: 4056 | AH74: 8112
AB75: Tee 3" | AC75: un | AD75: 1 | AE75: 2034 | AF75: 2034 | AG75: 4068 | AH75: 4068
AB76: Uniones 3" | AC76: un | AD76: 0 | AE76: 2040 | AF76: 2040 | AG76: 4080 | AH76: 0
AB77: Yee 3" | AC77: un | AD77: 0 | AE77: 2046 | AF77: 2046 | AG77: 4092 | AH77: 0
AB78: Válvula de globo 3" | AC78: un | AD78: 0 | AE78: 1004 | AF78: 2004 | AG78: 3008 | AH78: 0
AB79: Válvula de mariposa 3" | AC79: un | AD79: 0 | AE79: 1010 | AF79: 2010 | AG79: 3020 | AH79: 0
AB80: Válvula de Cheque 3" | AC80: un | AD80: 0 | AE80: 1016 | AF80: 2016 | AG80: 3032 | AH80: 0
AB81: Válvula de compuerta 3" | AC81: un | AD81: 0 | AE81: 1022 | AF81: 2022 | AG81: 3044 | AH81: 0
AB82: TOTAL IMPULSIÓN 2 | AH82: =SUM(AH70:AH81) -> 224640

Sheet K accesorios (hidden)
A1: Accesorios | B1: K | C1: Impulsion 1 | D1: Impulsion 2
C2: K*Cant | D2: K*Cant
A3: Válvula de globo | B3: 10 | C3: =B3*'Datos de entrada'!F23 -> 0 | D3: =B3*'Datos de entrada'!G23 -> 0
A4: Válvula de mariposa | B4: 5 | C4: =B4*'Datos de entrada'!F24 -> 0 | D4: =B4*'Datos de entrada'!G24 -> 0
A5: Válvula de Cheque | B5: 2.5 | C5: =B5*'Datos de entrada'!F25 -> 2.5 | D5: =B5*'Datos de entrada'!G25 -> 0
A6: Válvula de compuerta | B6: 0.2 | C6: =B6*'Datos de entrada'!F26 -> 0.2 | D6: =B6*'Datos de entrada'!G26 -> 0
A7: Codo 90 radio corto | B7: 0.9 | C7: =B7*'Datos de entrada'!F27 -> 0 | D7: =B7*'Datos de entrada'!G27 -> 2.7
A8: Codo 90 radio medio | B8: 0.8 | C8: =B8*'Datos de entrada'!F28 -> 0 | D8: =B8*'Datos de entrada'!G28 -> 0
A9: Codo 90 gran radio | B9: 0.6 | C9: =B9*'Datos de entrada'!F29 -> 0.6 | D9: =B9*'Datos de entrada'!G29 -> 0
A10: Codo 45 | B10: 0.4 | C10: =B10*'Datos de entrada'!F30 -> 0 | D10: =B10*'Datos de entrada'!G30 -> 0.8
A11: Te, en sentido recto | B11: 0.3 | C11: =B11*'Datos de entrada'!F31 -> 0.6 | D11: =B11*'Datos de entrada'!G31 -> 0.3
A12: Te, a través de la salida lateral | B12: 1.8 | C12: =B12*'Datos de entrada'!F32 -> 0 | D12: =B12*'Datos de entrada'!G32 -> 0
A13: Uniones | B13: 0.3 | C13: =B13*'Datos de entrada'!F33 -> 0.3 | D13: =B13*'Datos de entrada'!G33 -> 0
A14: ye de 45°, en sentido recto | B14: 0.3 | C14: =B14*'Datos de entrada'!F34 -> 0 | D14: =B14*'Datos de entrada'!G34 -> 0
A15: ye de 45°, en sentido lateral | B15: 0.8 | C15: =B15*'Datos de entrada'!F35 -> 0 | D15: =B15*'Datos de entrada'!G35 -> 0
A16: Entrada recta a tope | B16: 0.5 | C16: =B16*'Datos de entrada'!F36 -> 0 | D16: =B16*'Datos de entrada'!G36 -> 0
A17: Entrada con boca acampanada | B17: 0.1 | C17: =B17*'Datos de entrada'!F37 -> 0 | D17: =B17*'Datos de entrada'!G37 -> 0
A18: Entrada con tubo entrante | B18: 0.9 | C18: =B18*'Datos de entrada'!F38 -> 0 | D18: =B18*'Datos de entrada'!G38 -> 0
A19: Salida tubería | B19: 1 | C19: =B19*'Datos de entrada'!F39 -> 0 | D19: =B19*'Datos de entrada'!G39 -> 1
A20: Bibliografia : Tabla B.6.11 RAS

Sheet Datos curvas (hidden)
A1: CURVA DEL SISTEMA Y CURVA DE LA BOMBA
C4: Datos | F4: Impulsión 1 | G4: Impulsión 2
C5: Longitud tubería [m] | F5: ='Linea de impulsión'!D10 -> 3.4 | G5: ='Linea de impulsión'!H10 -> 50 | J5: Nivel de Entrega | M5: ='Datos de entrada'!F11 -> 47 | N5: msnm
C6: Diametro [pulg] | F6: ='Linea de impulsión'!D18 -> 2.5 | G6: ='Linea de impulsión'!H18 -> 3 | J6: (NA) Nivel de Arranque | M6: ='Pozo humedo'!D16 -> 43.35 | N6: msnm
C7: Rugosidad absoluta "ε" [mm] | F7: ='Linea de impulsión'!D19 -> 0.25 | G7: ='Linea de impulsión'!H19 -> 0.03 | J7: (NP) Nivel de Parada | M7: ='Pozo humedo'!D17 -> 42.15 | N7: msnm
C8: u [m2/s] | F8: ='Linea de impulsión'!D21 -> 1.139e-06 | G8: ='Linea de impulsión'!H21 -> 1.139e-06
C9: SK [m] | F9: ='Linea de impulsión'!D26 -> 4.2 | G9: ='Linea de impulsión'!H26 -> 4.8
B12: CURVA DEL SISTEMA EBAR | T12: CURVA DE LA BOMBA
U13: =VLOOKUP("X",'Bombas coincidentes'!$B$17:$C$56,2,FALSE) -> DRV/A50-155-1.8M
B14: Q | C14: IMPULSION 1 | I14: IMPULSION 2 | P14: Curva del sistema | U14: Q | W14: H
C15: Vel | D15: Pérdidas locales | E15: Re | F15: "f" | G15: Pérdidas por fricción | H15: Pérdidas de energía | I15: Vel | J15: Pérdidas locales | K15: Re | L15: "f" | M15: Pérdidas por fricción | N15: Pérdidas de energía | P15: HDT min | Q15: HDT max | U15: [m3/h] | V15: [L/s] | W15: [m]
B16: L/s | C16: m/s | D16: m | G16: m | H16: m | I16: m/s | J16: m | M16: m | N16: m | P16: m | Q16: m | U16: =VLOOKUP($U$13,'Base de datos'!$C$4:$S$113,2,FALSE) -> 2.4 | V16: =U16/3.6 -> 0.6666666667 | W16: =VLOOKUP($U$13,'Base de datos'!$C$4:$S$113,9,FALSE) -> 14
B17: =(Q/3.6)/7*0 -> 0 | C17: =(B17/1000)/(PI()*($F$6*0.0254)^2/4) -> 0 | D17: =$F$9*C17^2/(2*9.81) -> 0 | E17: =C17*($F$6*0.0254)/$F$8 -> 0 | F17: 0 | G17: =F17*$F$5/($F$6*0.0254)*C17^2/(2*9.81) -> 0 | H17: =D17+G17 -> 0 | I17: =(B17/1000)/(PI()*($G$6*0.0254)^2/4) -> 0 | J17: =$G$9*I17^2/(2*9.81) -> 0 | K17: =I17*($G$6*0.0254)/$G$8 -> 0 | L17: 0 | M17: =L17*$G$5/($G$6*0.0254)*I17^2/(2*9.81) -> 0 | N17: =J17+M17 -> 0 | P17: =$M$5-$M$7+H17+N17 -> 4.85 | Q17: =$M$5-$M$6+H17+N17 -> 3.65 | U17: =VLOOKUP($U$13,'Base de datos'!$C$4:$S$113,3,FALSE) -> 6 | V17: =U17/3.6 -> 1.666666667 | W17: =VLOOKUP($U$13,'Base de datos'!$C$4:$S$113,10,FALSE) -> 12.7
B18: =(Q/3.6)/7*1 -> 0.7936507937 | C18: 0.2506063799 | D18: 0.01344418665 | E18: 13971.47069 | F18: =ffriccion($F$7/1000,E18,$F$6*0.0254) -> 0.03437393522 | G18: 0.005891415985 | H18: 0.01933560263 | I18: 0.1740322082 | J18: 0.007409714863 | K18: 11642.89225 | L18: =ffriccion($G$7/1000,K18,$G$6*0.0254) -> 0.03023262761 | M18: 0.03062324341 | N18: 0.03803295827 | P18: 4.907368561 | Q18: 3.707368561 | U18: =VLOOKUP($U$13,'Base de datos'!$C$4:$S$113,4,FALSE) -> 9 | V18: 2.5 | W18: =VLOOKUP($U$13,'Base de datos'!$C$4:$S$113,11,FALSE) -> 11.8
B19: =(Q/3.6)/7*2 -> 1.587301587 | C19: 0.5012127597 | D19: 0.05377674659 | E19: 27942.94139 | F19: 0.03166629112 | G19: 0.02170939026 | H19: 0.07548613686 | I19: 0.3480644165 | J19: 0.02963885945 | K19: 23285.78449 | L19: 0.02577551647 | M19: 0.1044341795 | N19: 0.134073039 | P19: 5.059559176 | Q19: 3.859559176 | U19: =VLOOKUP($U$13,'Base de datos'!$C$4:$S$113,5,FALSE) -> 12 | V19: 3.333333333 | W19: =VLOOKUP($U$13,'Base de datos'!$C$4:$S$113,12,FALSE) -> 10.5
B20: =(Q/3.6)/7*3 -> 2.380952381 | C20: 0.7518191396 | D20: 0.1209976798 | E20: 41914.41208 | F20: 0.03061847293 | G20: 0.04722983963 | H20: 0.1682275195 | I20: 0.5220966247 | J20: 0.06668743377 | K20: 34928.67674 | L20: 0.02370874723 | M20: 0.2161356505 | N20: 0.2828230843 | P20: 5.301050604 | Q20: 4.101050604 | U20: =VLOOKUP($U$13,'Base de datos'!$C$4:$S$113,6,FALSE) -> 18 | V20: 5 | W20: =VLOOKUP($U$13,'Base de datos'!$C$4:$S$113,13,FALSE) -> 8.5
B21: =(Q/3.6)/7*4 -> 3.174603175 | C21: 1.002425519 | D21: 0.2151069864 | E21: 55885.88278 | F21: 0.03005680606 | G21: 0.0824239164 | H21: 0.2975309028 | I21: 0.6961288329 | J21: 0.1185554378 | K21: 46571.56898 | L21: 0.0224481784 | M21: 0.3638114636 | N21: 0.4823669014 | P21: 5.629897804 | Q21: 4.429897804 | U21: =VLOOKUP($U$13,'Base de datos'!$C$4:$S$113,7,FALSE) -> 24 | V21: 6.666666667 | W21: =VLOOKUP($U$13,'Base de datos'!$C$4:$S$113,14,FALSE) -> 6.4
B22: =(Q/3.6)/7*5 -> 3.968253968 | C22: 1.253031899 | D22: 0.3361046662 | E22: 69857.35347 | F22: 0.02970564337 | G22: 0.1272827078 | H22: 0.463387374 | I22: 0.8701610412 | J22: 0.1852428716 | K22: 58214.46123 | L22: 0.02157741605 | M22: 0.5464050894 | N22: 0.731647961 | P22: 6.045035335 | Q22: 4.845035335 | U22: =VLOOKUP($U$13,'Base de datos'!$C$4:$S$113,8,FALSE) -> 36 | V22: 10 | W22: =VLOOKUP($U$13,'Base de datos'!$C$4:$S$113,15,FALSE) -> 3
B23: =(Q/3.6)/7*6 -> 4.761904762 | C23: 1.503638279 | D23: 0.4839907193 | E23: 83828.82417 | F23: 0.02946503447 | G23: 0.1818025159 | H23: 0.6657932352 | I23: 1.044193249 | J23: 0.2667497351 | K23: 69857.35347 | L23: 0.02093082934 | M23: 0.763245459 | N23: 1.029995194 | P23: 6.545788429 | Q23: 5.345788429
B24: =(Q/3.6)/7*7 -> 5.555555556 | C24: 1.754244659 | D24: 0.6587651457 | E24: 97800.29486 | F24: 0.02928977077 | G24: 0.2459815237 | H24: 0.9047466695 | I24: 1.218225458 | J24: 0.3630760283 | K24: 81500.24572 | L24: 0.0204273244 | M24: 1.013871365 | N24: 1.376947394 | P24: 7.131694063 | Q24: 5.931694063
B25: =(Q/3.6)/7*8 -> 6.349206349 | C25: 2.004851039 | D25: 0.8604279455 | E25: 111771.7656 | F25: 0.02915637251 | G25: 0.3198187332 | H25: 1.180246679 | I25: 1.392257666 | J25: 0.4742217512 | K25: 93143.13796 | L25: 0.02002176608 | M25: 1.297949062 | N25: 1.772170813 | P25: 7.802417492 | Q25: 6.602417492
B26: =(Q/3.6)/7*9 -> 7.142857143 | C26: 2.255457419 | D26: 1.088979118 | E26: 125743.2363 | F26: 0.02905141963 | G26: 0.4033135498 | H26: 1.492292668 | I26: 1.566289874 | J26: 0.6001869039 | K26: 104786.0302 | L26: 0.01968672686 | M26: 1.615227969 | N26: 2.215414873 | P26: 8.557707542 | Q26: 7.357707542
B27: =(Q/3.6)/7*10 -> 7.936507937 | C27: 2.506063799 | D27: 1.344418665 | E27: 139714.7069 | F27: 0.0289666802 | G27: 0.4964655972 | H27: 1.840884262 | I27: 1.740322082 | J27: 0.7409714863 | K27: 116428.9225 | L27: 0.01940443437 | M27: 1.965514624 | N27: 2.706486111 | P27: 9.397370373 | Q27: 8.197370373
B47: 1000000

Sheet Prop. Agua (hidden)
A1: PROPIEDADES FÍSICAS DEL AGUA
A2: Temperatura (ºC) | B2: Peso específico (kN/m3) | C2: Densidad (kg/m3) | D2: Módulo de elasticidad (kN/m2) | E2: Viscosidad dinámica (N*s/m2) | F2: Viscosidad cinemática (m2/s) | G2: Tensión superficial (N/m) | H2: Presión de vapor (kN/m2)
A3: 0 | B3: 9.805 | C3: 999.9 | D3: =1.98 * 10^6 -> 1980000 | E3: =1.781 * 10^-3 -> 0.001781 | F3: =1.785 * 10^-6 -> 1.785e-06 | G3: 0.0765 | H3: 0.61
A4: 5 | B4: 9.807 | C4: 1000 | D4: =2.05 * 10^6 -> 2050000 | E4: =1.518 * 10^-3 -> 0.001518 | F4: =1.519 * 10^-6 -> 1.519e-06 | G4: 0.0749 | H4: 0.87
A5: 10 | B5: 9.804 | C5: 999.7 | D5: =2.1 * 10^6 -> 2100000 | E5: =1.307 * 10^-3 -> 0.001307 | F5: =1.306 * 10^-6 -> 1.306e-06 | G5: 0.0742 | H5: 1.23
A6: 15 | B6: 9.798 | C6: 999.1 | D6: =2.15 * 10^6 -> 2150000 | E6: =1.139 * 10^-3 -> 0.001139 | F6: =1.139 * 10^-6 -> 1.139e-06 | G6: 0.0735 | H6: 1.7
A7: 20 | B7: 9.789 | C7: 998.2 | D7: =2.17 * 10^6 -> 2170000 | E7: =1.002 * 10^-3 -> 0.001002 | F7: =1.003 * 10^-6 -> 1.003e-06 | G7: 0.0728 | H7: 2.34
A8: 25 | B8: 9.777 | C8: 997 | D8: =2.22 * 10^6 -> 2220000 | E8: =0.89 * 10^-3 -> 0.00089 | F8: =0.893 * 10^-6 -> 8.93e-07 | G8: 0.072 | H8: 3.17
A9: 30 | B9: 9.764 | C9: 995.7 | D9: =2.25 * 10^6 -> 2250000 | E9: =0.798 * 10^-3 -> 0.000798 | F9: =0.8 * 10^-6 -> 8e-07 | G9: 0.0712 | H9: 4.24
A10: 40 | B10: 9.73 | C10: 992.2 | D10: =2.28 * 10^6 -> 2280000 | E10: =0.653 * 10^-3 -> 0.000653 | F10: =0.658 * 10^-6 -> 6.58e-07 | G10: 0.0696 | H10: 7.38
A11: 50 | B11: 9.689 | C11: 988 | D11: =2.29 * 10^6 -> 2290000 | E11: =0.547 * 10^-3 -> 0.000547 | F11: =0.553 * 10^-6 -> 5.53e-07 | G11: 0.0679 | H11: 12.33
A12: 60 | B12: 9.642 | C12: 983.2 | D12: =2.28 * 10^6 -> 2280000 | E12: =0.466 * 10^-3 -> 0.000466 | F12: =0.474 * 10^-6 -> 4.74e-07 | G12: 0.0662 | H12: 19.92
A13: 70 | B13: 9.589 | C13: 977.8 | D13: =2.25 * 10^6 -> 2250000 | E13: =0.404 * 10^-3 -> 0.000404 | F13: =0.413 * 10^-6 -> 4.13e-07 | G13: 0.0644 | H13: 31.16
A14: 80 | B14: 9.53 | C14: 971.8 | D14: =2.2 * 10^6 -> 2200000 | E14: =0.354 * 10^-3 -> 0.000354 | F14: =0.364 * 10^-6 -> 3.64e-07 | G14: 0.0626 | H14: 47.34
A15: 90 | B15: 9.466 | C15: 965.3 | D15: =2.14 * 10^6 -> 2140000 | E15: =0.315 * 10^-3 -> 0.000315 | F15: =0.326 * 10^-6 -> 3.26e-07 | G15: 0.0608 | H15: 70.1
A16: 100 | B16: 9.399 | C16: 958.4 | D16: =2.07 * 10^6 -> 2070000 | E16: =0.282 * 10^-3 -> 0.000282 | F16: =0.294 * 10^-6 -> 2.94e-07 | G16: 0.0589 | H16: 101.33
A17: Bibliografia : Tabla A.1 Metcalf & Eddy

Sheet Tuberías (hidden)
A1: RUGOSIDAD ABSOLUTA DE MATERIALES
A2: Material | B2: SIMBOLO | C2: ε (mm)
A3: Plástico (PE, PVC) | B3: PVC | C3: 0.0015
A4: Poliéster reforzado con fibra de vidrio | B4: GRP | C4: 0.03
A5: Acero comercial | B5: ACERO | C5: 0.45
A6: Hierro Ductil | B6: HD | C6: 0.25
A7: Concreto | B7: CCP | C7: 0.12
A8: Polietileno | B8: PEAD | C8: 0.007
A9: Bibliografia : tabla 9.5 EPM
A11: DIAMETROS
A12: mm | B12: pulg
A13: 32 | B13: 1.25
A14: 40 | B14: 1.5
A15: 50 | B15: 2
A16: 65 | B16: 2.5
A17: 80 | B17: 3
A18: 100 | B18: 4

Sheet Base de datos
A1: 1 | B1: 2 | C1: 3 | D1: 4 | E1: 5 | F1: 6 | G1: 7 | H1: 8 | I1: 9 | J1: =I1+1 -> 10 | K1: =J1+1 -> 11 | L1: 12 | M1: 13 | N1: 14 | O1: 15 | P1: 16 | Q1: 17 | R1: 18 | S1: 19 | T1: 20 | U1: 21 | V1: 22 | W1: 23 | X1: =W1+1 -> 24 | Y1: =X1+1 -> 25 | Z1: =Y1+1 -> 26 | AA1: =Z1+1 -> 27 | AB1: =AA1+1 -> 28 | AC1: =AB1+1 -> 29 | AD1: =AC1+1 -> 30 | AE1: =AD1+1 -> 31 | AF1: =AE1+1 -> 32 | AG1: =AF1+1 -> 33 | AH1: =AG1+1 -> 34 | AI1: 35
A2: FABRICANTE | B2: SERIE | C2: IDENTIFICACION | D2: CURVA CARACTERÍSTICA | U2: VALIDACIÓN DE LA CURVA | Y2: PASO DE SÓLIDOS | Z2: TIPO DE CONEXIÓN | AA2: DIÁMETRO DESCARGA | AB2: MOTOR | AC2: POTENCIA EJE DEL MOTOR | AD2: VELOCIDAD | AE2: SUMERGENCIA MÍNIMA | AF2: f IMPULSOR | AG2: ECUACIÓN | AH2: EFICIENCIA | AI2: COSTO DE ADQUISICIÓN
D3: Q [m3/h] | K3: H [m] | R3: ECUACIÓN | S3: R² | U3: Q [m3/h] | V3: H [m] | W3: VALIDACIÓN | Y3: [mm] | AA3: DN [mm] | AC3: [kW] | AD3: [R.P.M] | AE3: [mm] | AF3: [mm] | AG3: EFICIENCIA | AH3: [%] | AI3: [%]
A4: ABS | B4: AS | C4: AS0530 S12/2W | D4: 0 | E4: 5 | F4: 10 | G4: 15 | H4: 20 | I4: 25 | J4: 26.53 | K4: 12.27 | L4: 10.78 | M4: 9.37 | N4: 7.72 | O4: 6.07 | P4: 3.84 | Q4: 3.22 | R4: H=-0.0033*Q^2-0.2478*Q+12.202 | S4: 0.999 | U4: =Q -> 20 | V4: =-0.0033*Q^2-0.2478*Q+12.202 -> 5.926 | W4: =IF(AND(V4>H-1,V4<H+1,V4>Q4),"OK","") ->  | Y4: 40 | Z4: Roscado | AA4: 50 | AB4: Monofásico | AC4: 1.2 | AD4: 2900 | AE4: 331 | AF4: 110 | AG4: e=-0.0437*Q^2+1.7589*Q+33.614 | AH4: =-0.0437*Q^2+1.7589*Q+33.614 -> 51.312 | AI4: 3000000
A5: ABS | B5: AS | C5: AS0530 S12/2D | D5: 0 | E5: 5 | F5: 10 | G5: 15 | H5: 20 | I5: 25 | J5: 26.53 | K5: 12.27 | L5: 10.78 | M5: 9.37 | N5: 7.72 | O5: 6.07 | P5: 3.84 | Q5: 3.22 | R5: H=-0.0033*Q^2-0.2478*Q+12.202 | S5: 0.999 | U5: 20 | V5: =-0.0033*Q^2-0.2478*Q+12.202 -> 5.926 | Y5: 40 | Z5: Roscado | AA5: 50 | AB5: Trifásico | AC5: 1.2 | AD5: 2900 | AE5: 331 | AF5: 110 | AG5: e=-0.0507*Q^2+1.8918*Q+38.34 | AH5: =-0.0507*Q^2+1.8918*Q+38.34 -> 55.896 | AI5: =AI4+100000 -> 3100000
A6: ABS | B6: AS | C6: AS0530 S17/2D | D6: 0 | E6: 5 | F6: 10 | G6: 15 | H6: 20 | I6: 25 | J6: 30 | K6: 16.11 | L6: 14.13 | M6: 12.4 | N6: 10.73 | O6: 8.88 | P6: 6.89 | Q6: 5.07 | R6: H=-0.0004*Q^2-0.3529*Q+16.027 | S6: 0.9996 | U6: 20 | V6: =-0.0004*Q^2-0.3529*Q+16.027 -> 8.809 | Y6: 40 | Z6: Roscado | AA6: 50 | AB6: Trifásico | AC6: 1.7 | AD6: 2900 | AE6: 331 | AF6: 125 | AG6: e=-0.0476*Q^2+1.8571*Q+43.333 | AH6: =-0.0476*Q^2+1.8571*Q+43.333 -> 61.435 | AI6: =AI5+100000 -> 3200000
A7: ABS | B7: AS | C7: AS0530 S26/2D | D7: 0 | E7: 5 | F7: 10 | G7: 15 | H7: 20 | I7: 25 | J7: 35 | K7: 21.24 | L7: 19.08 | M7: 17.06 | N7: 15.43 | O7: 13.65 | P7: 11.51 | Q7: 6.05 | R7: H=-0.0029*Q^2-0.3178*Q+20.935 | S7: 0.9967 | U7: 20 | V7: =-0.0029*Q^2-0.3178*Q+20.935 -> 13.419 | Y7: 40 | Z7: Roscado | AA7: 50 | AB7: Trifásico | AC7: 2.6 | AD7: 2900 | AE7: 331 | AF7: 142 | AG7: e=-0.0383*Q^2+1.664*Q+48.781 | AH7: =-0.0383*Q^2+1.664*Q+48.781 -> 66.741 | AI7: 3300000
A8: ABS | B8: AS | C8: AS0630 S10/4W | D8: 0 | E8: 8.12 | F8: 15 | G8: 20 | H8: 25 | I8: 30 | J8: 35 | K8: 5.36 | L8: 4.51 | M8: 3.58 | N8: 2.97 | O8: 2.36 | P8: 1.87 | Q8: 1.3 | R8: H=0.0002*Q^2-0.1239*Q+5.4062 | S8: 0.9987 | U8: 20 | V8: =0.0002*Q^2-0.1239*Q+5.4062 -> 3.0082 | Y8: 60 | Z8: Brida DN | AA8: 65 | AB8: Monofásico | AC8: 1 | AD8: 1450 | AE8: 348 | AF8: 130 | AG8: e=-0.0283*Q^2+1.3957*Q+53.084 | AH8: =-0.0283*Q^2+1.3957*Q+53.084 -> 69.678 | AI8: 3400000
A9: ABS | B9: AS | C9: AS0630 S10/4W | D9: 0 | E9: 8.12 | F9: 20 | G9: 30 | H9: 40 | I9: 50 | J9: 53.9 | K9: 7.79 | L9: 6.88 | M9: 5.56 | N9: 4.63 | O9: 3.57 | P9: 2.47 | Q9: 1.97 | R9: H=-3E-05*Q^2-0.1047*Q+7.7531 | S9: 0.9994 | U9: 20 | V9: =-0.00003*Q^2-0.1047*Q+7.7531 -> 5.6471 | Y9: 60 | Z9: Brida DN | AA9: 65 | AB9: Monofásico | AC9: 1 | AD9: 1450 | AE9: 348 | AF9: 160 | AG9: e=-0.011*Q^2+0.8783*Q+34.006 | AH9: =-0.011*Q^2+0.8783*Q+34.006 -> 47.172 | AI9: 3500000
A10: ABS | B10: AS | C10: AS0630 S13/4D | D10: 0 | E10: 8.12 | F10: 15 | G10: 20 | H10: 25 | I10: 30 | J10: 35 | K10: 5.36 | L10: 4.51 | M10: 3.58 | N10: 2.97 | O10: 2.36 | P10: 1.87 | Q10: 1.3 | R10: H=0.0002*Q^2-0.1239*Q+5.4062 | S10: 0.9987 | U10: 20 | V10: =0.0002*Q^2-0.1239*Q+5.4062 -> 3.0082 | Y10: 60 | Z10: Brida DN | AA10: 65 | AB10: Trifásico | AC10: 1.3 | AD10: 1450 | AE10: 348 | AF10: 130 | AG10: e=-0.0283*Q^2+1.3957*Q+38.084 | AH10: =-0.0283*Q^2+1.3957*Q+38.084 -> 54.678 | AI10: 3600000
A11: ABS | B11: AS | C11: AS0630 S13/4D | D11: 0 | E11: 8.12 | F11: 20 | G11: 30 | H11: 40 | I11: 50 | J11: 53.9 | K11: 7.79 | L11: 6.88 | M11: 5.56 | N11: 4.63 | O11: 3.57 | P11: 2.47 | Q11: 1.97 | R11: H=-3E-05*Q^2-0.1047*Q+7.7531 | S11: 0.9994 | U11: 20 | V11: =-0.00003*Q^2-0.1047*Q+7.7531 -> 5.6471 | Y11: 60 | Z11: Brida DN | AA11: 65 | AB11: Trifásico | AC11: 1.3 | AD11: 1450 | AE11: 348 | AF11: 160 | AG11: e=-0.0129*Q^2+0.9487*Q+43.723 | AH11: =-0.0129*Q^2+0.9487*Q+43.723 -> 57.537 | AI11: 3700000
A12: ABS | B12: AS | C12: AS0630 S13/4D | D12: 0 | E12: 8.12 | F12: 15 | G12: 25 | H12: 30 | I12: 35 | J12: 46.04 | K12: 9.83 | L12: 8.87 | M12: 8.08 | N12: 6.96 | O12: 6.41 | P12: 5.71 | Q12: 4.39 | R12: H=-0.0001*Q^2-0.1108*Q+9.8063 | S12: 0.9996 | U12: 20 | V12: =-0.0001*Q^2-0.1108*Q+9.8063 -> 7.5503 | W12: OK | Y12: 60 | Z12: Brida DN | AA12: 65 | AB12: Trifásico | AC12: 1.3 | AD12: 1450 | AE12: 348 | AF12: 186 | AG12: e=-0.0199*Q^2+1.1872*Q+48.375 | AH12: =-0.0199*Q^2+1.1872*Q+48.375 -> 64.159 | AI12: 3800000
A13: ABS | B13: AS | C13: AS0630 S22/4D | D13: 0 | E13: 8.12 | F13: 25 | G13: 35 | H13: 50 | I13: 60 | J13: 69.09 | K13: 11.39 | L13: 10.51 | M13: 9.08 | N13: 8.04 | O13: 6.37 | P13: 5.09 | Q13: 4 | R13: H=-0.0003*Q^2-0.082*Q+11.317 | S13: 0.9995 | U13: 20 | V13: =-0.0003*Q^2-0.082*Q+11.317 -> 9.557 | Y13: 60 | Z13: Brida DN | AA13: 65 | AB13: Trifásico | AC13: 2.2 | AD13: 1450 | AE13: 348 | AF13: 205 | AG13: e=-0.0084*Q^2+0.7623*Q+54.138 | AH13: =-0.0084*Q^2+0.7623*Q+54.138 -> 66.024 | AI13: 3900000
A14: ABS | B14: AS | C14: AS0631 S12/2W | D14: 0 | E14: 8.86 | F14: 15 | G14: 20 | H14: 30 | I14: 35 | J14: 40.29 | K14: 12.46 | L14: 11.21 | M14: 9.54 | N14: 8.18 | O14: 4.93 | P14: 2.75 | Q14: 0.52 | R14: H=-0.0042*Q^2-0.1302*Q+12.52 | S14: 0.9995 | U14: 20 | V14: =-0.0042*Q^2-0.1302*Q+12.52 -> 8.236 | Y14: 40 | Z14: Brida DN | AA14: 65 | AB14: Monofásico | AC14: 1.2 | AD14: 2900 | AE14: 346 | AF14: 128 | AG14: e=-0.0197*Q^2+1.1895*Q+33.326 | AH14: =-0.0197*Q^2+1.1895*Q+33.326 -> 49.236 | AI14: 4000000
A15: ABS | B15: AS | C15: AS0631 S12/2D | D15: 0 | E15: 8.86 | F15: 15 | G15: 20 | H15: 30 | I15: 35 | J15: 40.29 | K15: 12.46 | L15: 11.21 | M15: 9.54 | N15: 8.18 | O15: 4.93 | P15: 2.75 | Q15: 0.52 | R15: H=-0.0042*Q^2-0.1302*Q+12.52 | S15: 0.9995 | U15: 20 | V15: =-0.0042*Q^2-0.1302*Q+12.52 -> 8.236 | Y15: 40 | Z15: Brida DN | AA15: 65 | AB15: Trifásico | AC15: 1.2 | AD15: 2900 | AE15: 346 | AF15: 128 | AG15: e=-0.0234*Q^2+1.2956*Q+37.965 | AH15: =-0.0234*Q^2+1.2956*Q+37.965 -> 54.517 | AI15: 4100000
A16: ABS | B16: AS | C16: AS0631 S17/2W | D16: 0 | E16: 8.58 | F16: 15 | G16: 25 | H16: 35 | I16: 45 | J16: 52.26 | K16: 17.15 | L16: 15.15 | M16: 13.26 | N16: 10.23 | O16: 7.13 | P16: 3.82 | Q16: 1.27 | R16: H=-0.001*Q^2-0.2513*Q+17.239 | S16: 0.9998 | U16: 20 | V16: =-0.001*Q^2-0.2513*Q+17.239 -> 11.813 | Y16: 40 | Z16: Brida DN | AA16: 65 | AB16: Monofásico | AC16: 1.65 | AD16: 2900 | AE16: 346 | AF16: 142 | AG16: e=-0.0166*Q^2+1.1161*Q+43.302 | AH16: =-0.0166*Q^2+1.1161*Q+43.302 -> 58.984 | AI16: 4200000
A17: ABS | B17: AS | C17: AS0631 S17/2D | D17: 0 | E17: 8.58 | F17: 15 | G17: 25 | H17: 35 | I17: 45 | J17: 52.26 | K17: 17.15 | L17: 15.15 | M17: 13.26 | N17: 10.23 | O17: 7.13 | P17: 3.82 | Q17: 1.27 | R17: H=-0.001*Q^2-0.2513*Q+17.239 | S17: 0.9998 | U17: 20 | V17: =-0.001*Q^2-0.2513*Q+17.239 -> 11.813 | Y17: 40 | Z17: Brida DN | AA17: 65 | AB17: Trifásico | AC17: 1.7 | AD17: 2900 | AE17: 346 | AF17: 142 | AG17: e=-0.0166*Q^2+1.1161*Q+48.302 | AH17: =-0.0166*Q^2+1.1161*Q+48.302 -> 63.984 | AI17: 4300000
A18: ABS | B18: AS | C18: AS0631 S30/2D | D18: 0 | E18: 9.07 | F18: 20 | G18: 40 | H18: 50 | I18: 60 | J18: 68.34 | K18: 22.27 | L18: 19.8 | M18: 16.15 | N18: 10.34 | O18: 7 | P18: 3.87 | Q18: 1.21 | R18: H=-0.0002*Q^2-0.2946*Q+22.32 | S18: 0.9998 | U18: 20 | V18: =-0.0002*Q^2-0.2946*Q+22.32 -> 16.348 | Y18: 40 | Z18: Brida DN | AA18: 65 | AB18: Trifásico | AC18: 3 | AD18: 2900 | AE18: 346 | AF18: 151 | AG18: e=-0.0091*Q^2+0.806*Q+53.919 | AH18: =-0.0091*Q^2+0.806*Q+53.919 -> 66.399 | AI18: 4400000
A19: ABS | B19: AS | C19: AS0641 S30/2D | D19: 0 | E19: 9.04 | F19: 20 | G19: 30 | H19: 40 | I19: 60 | J19: 69.42 | K19: 28.07 | L19: 24.83 | M19: 21.09 | N19: 17.93 | O19: 14.14 | P19: 7.14 | Q19: 3.6 | R19: H=-0.0002*Q^2-0.3348*Q+27.983 | S19: 0.9998 | U19: 20 | V19: =-0.0002*Q^2-0.3348*Q+27.983 -> 21.207 | Y19: 45 | Z19: Brida DN | AA19: 65 | AB19: Trifásico | AC19: 3 | AD19: 2900 | AE19: 346 | AF19: 143 | AG19: e=-0.0088*Q^2+0.8124*Q+33.987 | AH19: =-0.0088*Q^2+0.8124*Q+33.987 -> 46.715 | AI19: 4500000
A20: ABS | B20: AS | C20: AS0830 S10/4W | D20: 0 | E20: 8.12 | F20: 15 | G20: 20 | H20: 25 | I20: 30 | J20: 35 | K20: 5.36 | L20: 4.51 | M20: 3.58 | N20: 2.97 | O20: 2.36 | P20: 1.87 | Q20: 1.3 | R20: H=0.0002*Q^2-0.1239*Q+5.4062 | S20: 0.9987 | U20: 20 | V20: =0.0002*Q^2-0.1239*Q+5.4062 -> 3.0082 | Y20: 60 | Z20: Brida DN | AA20: 80 | AB20: Monofásico | AC20: 1 | AD20: 1450 | AE20: 305 | AF20: 130 | AG20: e=-0.0283*Q^2+1.3957*Q+38.084 | AH20: =-0.0283*Q^2+1.3957*Q+38.084 -> 54.678 | AI20: 4600000
A21: ABS | B21: AS | C21: AS0830 S10/4W | D21: 0 | E21: 8.12 | F21: 20 | G21: 30 | H21: 40 | I21: 50 | J21: 53.9 | K21: 7.79 | L21: 6.88 | M21: 5.56 | N21: 4.63 | O21: 3.57 | P21: 2.47 | Q21: 1.97 | R21: H=-3E-05*Q^2-0.1047*Q+7.7531 | S21: 0.9994 | U21: 20 | V21: =-0.00003*Q^2-0.1047*Q+7.7531 -> 5.6471 | Y21: 60 | Z21: Brida DN | AA21: 80 | AB21: Monofásico | AC21: 1 | AD21: 1450 | AE21: 305 | AF21: 160 | AG21: e=-0.0129*Q^2+0.9487*Q+43.723 | AH21: =-0.0129*Q^2+0.9487*Q+43.723 -> 57.537 | AI21: 4700000
A22: ABS | B22: AS | C22: AS0830 S13/4D | D22: 0 | E22: 8.12 | F22: 15 | G22: 20 | H22: 25 | I22: 30 | J22: 35 | K22: 5.36 | L22: 4.51 | M22: 3.58 | N22: 2.97 | O22: 2.36 | P22: 1.87 | Q22: 1.3 | R22: H=0.0002*Q^2-0.1239*Q+5.4062 | S22: 0.9987 | U22: 20 | V22: =0.0002*Q^2-0.1239*Q+5.4062 -> 3.0082 | Y22: 60 | Z22: Brida DN | AA22: 80 | AB22: Trifásico | AC22: 1.3 | AD22: 1450 | AE22: 305 | AF22: 130 | AG22: e=-0.0283*Q^2+1.3957*Q+48.084 | AH22: =-0.0283*Q^2+1.3957*Q+48.084 -> 64.678 | AI22: 4800000
A23: ABS | B23: AS | C23: AS0830 S13/4D | D23: 0 | E23: 8.12 | F23: 20 | G23: 30 | H23: 40 | I23: 50 | J23: 53.9 | K23: 7.79 | L23: 6.88 | M23: 5.56 | N23: 4.63 | O23: 3.57 | P23: 2.47 | Q23: 1.97 | R23: H=-3E-05*Q^2-0.1047*Q+7.7531 | S23: 0.9994 | U23: 20 | V23: =-0.00003*Q^2-0.1047*Q+7.7531 -> 5.6471 | Y23: 60 | Z23: Brida DN | AA23: 80 | AB23: Trifásico | AC23: 1.3 | AD23: 1450 | AE23: 305 | AF23: 160 | AG23: e=-0.0129*Q^2+0.9487*Q+53.723 | AH23: =-0.0129*Q^2+0.9487*Q+53.723 -> 67.537 | AI23: 4900000
A24: ABS | B24: AS | C24: AS0830 S13/4D | D24: 0 | E24: 8.12 | F24: 15 | G24: 25 | H24: 30 | I24: 35 | J24: 46.04 | K24: 9.83 | L24: 8.87 | M24: 8.08 | N24: 6.96 | O24: 6.41 | P24: 5.71 | Q24: 4.39 | R24: H=-0.0001*Q^2-0.1108*Q+9.8063 | S24: 0.9996 | U24: 20 | V24: =-0.0001*Q^2-0.1108*Q+9.8063 -> 7.5503 | W24: OK | Y24: 60 | Z24: Brida DN | AA24: 80 | AB24: Trifásico | AC24: 1.3 | AD24: 1450 | AE24: 305 | AF24: 186 | AG24: e=-0.0165*Q^2+1.0821*Q+33.738 | AH24: =-0.0165*Q^2+1.0821*Q+33.738 -> 48.78 | AI24: 5000000
A25: ABS | B25: AS | C25: AS0830 S22/4D | D25: 0 | E25: 8.12 | F25: 25 | G25: 35 | H25: 50 | I25: 60 | J25: 69.09 | K25: 11.39 | L25: 10.51 | M25: 9.08 | N25: 8.04 | O25: 6.37 | P25: 5.09 | Q25: 4 | R25: H=-0.0003*Q^2-0.082*Q+11.317 | S25: 0.9995 | U25: 20 | V25: =-0.0003*Q^2-0.082*Q+11.317 -> 9.557 | Y25: 60 | Z25: Brida DN | AA25: 80 | AB25: Trifásico | AC25: 2.2 | AD25: 1450 | AE25: 305 | AF25: 205 | AG25: e=-0.0084*Q^2+0.7623*Q+39.138 | AH25: =-0.0084*Q^2+0.7623*Q+39.138 -> 51.024 | AI25: 5100000
A26: ABS | B26: AS | C26: AS0840 S12/2W | D26: 0 | E26: 9.89 | F26: 15 | G26: 20 | H26: 25 | I26: 30 | J26: 33.95 | K26: 8.04 | L26: 5.62 | M26: 4.67 | N26: 3.69 | O26: 2.86 | P26: 1.89 | Q26: 1.15 | R26: H=0.0011*Q^2-0.2381*Q+7.9869 | S26: 0.9989 | U26: 20 | V26: =0.0011*Q^2-0.2381*Q+7.9869 -> 3.6649 | Y26: 30 | Z26: Brida DN | AA26: 80 | AB26: Monofásico | AC26: 1.2 | AD26: 2900 | AE26: 305 | AF26: 110 | AG26: e=-0.0264*Q^2+1.3346*Q+43.024 | AH26: =-0.0264*Q^2+1.3346*Q+43.024 -> 59.156 | AI26: 5200000
A27: ABS | B27: AS | C27: AS0840 S12/2W | D27: 0 | E27: 10.12 | F27: 20 | G27: 30 | H27: 35 | I27: 45 | J27: 52.28 | K27: 12.44 | L27: 10 | M27: 7.72 | N27: 5.76 | O27: 4.72 | P27: 2.69 | Q27: 1.48 | R27: H=0.0007*Q^2-0.2447*Q+12.421 | S27: 0.9998 | U27: 20 | V27: =0.0007*Q^2-0.2447*Q+12.421 -> 7.807 | W27: OK | Y27: 30 | Z27: Brida DN | AA27: 80 | AB27: Monofásico | AC27: 1.2 | AD27: 2900 | AE27: 305 | AF27: 118 | AG27: e=-0.0142*Q^2+0.9989*Q+48.213 | AH27: =-0.0142*Q^2+0.9989*Q+48.213 -> 62.511 | AI27: 5300000
A28: ABS | B28: AS | C28: AS0840 S12/2D | D28: 0 | E28: 9.89 | F28: 15 | G28: 20 | H28: 25 | I28: 30 | J28: 33.95 | K28: 8.04 | L28: 5.62 | M28: 4.67 | N28: 3.69 | O28: 2.86 | P28: 1.89 | Q28: 1.15 | R28: H=0.0011*Q^2-0.2381*Q+7.9869 | S28: 0.9989 | U28: 20 | V28: =0.0011*Q^2-0.2381*Q+7.9869 -> 3.6649 | Y28: 30 | Z28: Brida DN | AA28: 80 | AB28: Trifásico | AC28: 1.2 | AD28: 2900 | AE28: 305 | AF28: 110 | AG28: e=-0.0264*Q^2+1.3346*Q+53.024 | AH28: =-0.0264*Q^2+1.3346*Q+53.024 -> 69.156 | AI28: 5400000
A29: ABS | B29: AS | C29: AS0840 S12/2D | D29: 0 | E29: 10.12 | F29: 20 | G29: 30 | H29: 35 | I29: 45 | J29: 52.28 | K29: 12.44 | L29: 10 | M29: 7.72 | N29: 5.76 | O29: 4.72 | P29: 2.69 | Q29: 1.48 | R29: H=0.0007*Q^2-0.2447*Q+12.421 | S29: 0.9998 | U29: 20 | V29: =0.0007*Q^2-0.2447*Q+12.421 -> 7.807 | W29: OK | Y29: 30 | Z29: Brida DN | AA29: 80 | AB29: Trifásico | AC29: 1.2 | AD29: 2900 | AE29: 305 | AF29: 118 | AG29: e=-0.0142*Q^2+0.9989*Q+38.213 | AH29: =-0.0142*Q^2+0.9989*Q+38.213 -> 52.511 | AI29: 5500000
A30: ABS | B30: AS | C30: AS0840 S17/2D | D30: 0 | E30: 10 | F30: 15 | G30: 25 | H30: 35 | I30: 45 | J30: 54.16 | K30: 15.95 | L30: 13.41 | M30: 12.1 | N30: 9.57 | O30: 7.34 | P30: 4.99 | Q30: 2.85 | R30: H=0.0004*Q^2-0.2602*Q+15.944 | S30: 0.9999 | U30: 20 | V30: =0.0004*Q^2-0.2602*Q+15.944 -> 10.9 | Y30: 30 | Z30: Brida DN | AA30: 80 | AB30: Trifásico | AC30: 1.7 | AD30: 2900 | AE30: 305 | AF30: 128 | AG30: e=-0.0157*Q^2+1.0878*Q+43.136 | AH30: =-0.0157*Q^2+1.0878*Q+43.136 -> 58.612 | AI30: 5600000
A31: ABS | B31: AS | C31: AS0840 S26/2D | D31: 0 | E31: 9.66 | F31: 15 | G31: 30 | H31: 50 | I31: 60 | J31: 67.32 | K31: 22.63 | L31: 17.71 | M31: 15.86 | N31: 11.86 | O31: 7.67 | P31: 5.2 | Q31: 3.06 | R31: H=0.0017*Q^2-0.3854*Q+21.874 | S31: 0.9921 | U31: 20 | V31: =0.0017*Q^2-0.3854*Q+21.874 -> 14.846 | Y31: 30 | Z31: Brida DN | AA31: 80 | AB31: Trifásico | AC31: 2.6 | AD31: 2900 | AE31: 305 | AF31: 142 | AG31: e=-0.0108*Q^2+0.9141*Q+48.673 | AH31: =-0.0108*Q^2+0.9141*Q+48.673 -> 62.635 | AI31: 5700000
A32: ABS | B32: AS | C32: AS0841 S13/4D | D32: 0 | E32: 10 | F32: 20 | G32: 30 | H32: 40 | I32: 50 | J32: 59.14 | K32: 4.66 | L32: 4.17 | M32: 3.63 | N32: 3.03 | O32: 2.4 | P32: 1.73 | Q32: 1.08 | R32: H=-0.0002*Q^2-0.0478*Q+4.665 | S32: 1 | U32: 20 | V32: =-0.0002*Q^2-0.0478*Q+4.665 -> 3.629 | Y32: 80 | Z32: Brida DN | AA32: 80 | AB32: Trifásico | AC32: 1.3 | AD32: 1450 | AE32: 445 | AF32: 152 | AG32: e=-0.0121*Q^2+0.9349*Q+53.31 | AH32: =-0.0121*Q^2+0.9349*Q+53.31 -> 67.168 | AI32: 5800000
A33: BOMBAS IDEAL | B33: ARS | C33: ARS 40-10V/0,5 | D33: 0 | E33: 4 | F33: 6 | G33: 8 | H33: 10 | I33: 12 | J33: 14.1 | K33: 7.3 | L33: 5.85 | M33: 5 | N33: 4.1 | O33: 3.1 | P33: 2.06 | Q33: 0.9 | R33: H=-0.0087*Q^2-0.3316*Q+7.3054 | S33: 1 | U33: 20 | V33: =-0.0087*Q^2-0.3316*Q+7.3054 -> -2.8066 | Y33: 30 | Z33: Roscado | AA33: 32 | AB33: Trifásico | AC33: 0.3 | AD33: 2850 | AE33: 280 | AF33: 110 | AG33: e=-0.1343*Q^2+3.0536*Q+33.262 | AH33: =-0.1343*Q^2+3.0536*Q+33.262 -> 40.614 | AI33: 3000000
A34: BOMBAS IDEAL | B34: ARS | C34: ARS 50-16V/1,8 | D34: 0 | E34: 10 | F34: 15 | G34: 20 | H34: 25 | I34: 30 | J34: 36.3 | K34: 12.4 | L34: 10 | M34: 8.5 | N34: 7 | O34: 5.3 | P34: 3.5 | Q34: 1.1 | R34: H=-0.0025*Q^2-0.2216*Q+12.417 | S34: 0.9999 | U34: 20 | V34: =-0.0025*Q^2-0.2216*Q+12.417 -> 6.985 | W34: OK | Y34: 50 | Z34: Roscado | AA34: 50 | AB34: Trifásico | AC34: 1.3 | AD34: 2850 | AE34: 339 | AF34: 110 | AG34: e=-0.0262*Q^2+1.3443*Q+37.916 | AH34: =-0.0262*Q^2+1.3443*Q+37.916 -> 54.322 | AI34: 3100000
A35: BOMBAS IDEAL | B35: ARS | C35: ARS 50-16V/2,5 | D35: 0 | E35: 10 | F35: 15 | G35: 20 | H35: 25 | I35: 30 | J35: 37.25 | K35: 15.6 | L35: 12.3 | M35: 10.65 | N35: 9 | O35: 7.3 | P35: 5.6 | Q35: 3.1 | R35: H=-0.0003*Q^2-0.3248*Q+15.592 | S35: 1 | U35: 20 | V35: =-0.0003*Q^2-0.3248*Q+15.592 -> 8.976 | Y35: 50 | Z35: Roscado | AA35: 50 | AB35: Trifásico | AC35: 1.8 | AD35: 2850 | AE35: 339 | AF35: 110 | AG35: e=-0.0259*Q^2+1.3407*Q+42.901 | AH35: =-0.0259*Q^2+1.3407*Q+42.901 -> 59.355 | AI35: 3200000
A36: BOMBAS IDEAL | B36: ARS | C36: ARS 80-16V/2,5 | D36: 0 | E36: 10 | F36: 20 | G36: 30 | H36: 40 | I36: 50 | J36: 54.6 | K36: 8.2 | L36: 6.8 | M36: 5.6 | N36: 4.2 | O36: 2.8 | P36: 1.3 | Q36: 0.75 | R36: H=-0.0002*Q^2-0.1281*Q+8.1731 | S36: 0.9996 | U36: =Q -> 20 | V36: =-0.0002*Q^2-0.1281*Q+8.1731 -> 5.5311 | W36: =IF(AND(V36>H-1,V36<H+1,V36>Q36),"OK","") ->  | Y36: 60 | Z36: Bridado | AA36: 80 | AB36: Trifásico | AC36: 1.7 | AD36: 2850 | AE36: 420 | AF36: 110 | AG36: e=-0.0127*Q^2+0.9506*Q+48.292 | AH36: =-0.0127*Q^2+0.9506*Q+48.292 -> 62.224 | AI36: 3300000
A37: BOMBAS IDEAL | B37: ARS | C37: ARS 80-17V/5,5 | D37: 0 | E37: 10 | F37: 20 | G37: 30 | H37: 40 | I37: 50 | J37: 66.4 | K37: 17.5 | L37: 14.9 | M37: 12.3 | N37: 9.8 | O37: 7.5 | P37: 5 | Q37: 1.2 | R37: H=0.0003*Q^2-0.2625*Q+17.487 | S37: 0.9999 | U37: 20 | V37: =0.0003*Q^2-0.2625*Q+17.487 -> 12.357 | Y37: 50 | Z37: Bridado | AA37: 80 | AB37: Trifásico | AC37: 3.1 | AD37: 2850 | AE37: 449 | AF37: 110 | AG37: e=-0.0104*Q^2+0.868*Q+53.602 | AH37: =-0.0104*Q^2+0.868*Q+53.602 -> 66.802 | AI37: 3400000
A38: BOMBAS IDEAL | B38: ARS | C38: ARS 80-17V/4 | D38: 0 | E38: 10 | F38: 20 | G38: 30 | H38: 40 | I38: 50 | J38: 60 | K38: 15.2 | L38: 12.8 | M38: 10.4 | N38: 8.1 | O38: 5.9 | P38: 3.6 | Q38: 1.5 | R38: H=0.0003*Q^2-0.2443*Q+15.202 | S38: 1 | U38: 20 | V38: =0.0003*Q^2-0.2443*Q+15.202 -> 10.436 | Y38: 50 | Z38: Bridado | AA38: 80 | AB38: Trifásico | AC38: 2.7 | AD38: 2850 | AE38: 449 | AF38: 110 | AG38: e=-0.0101*Q^2+0.8536*Q+33.69 | AH38: =-0.0101*Q^2+0.8536*Q+33.69 -> 46.722 | AI38: 3500000
A39: BOMBAS IDEAL | B39: ARS | C39: ARS 80B-18 V/7,5E | D39: 0 | E39: 10 | F39: 20 | G39: 30 | H39: 40 | I39: 50 | J39: 62.3 | K39: 20.3 | L39: 19.4 | M39: 18.4 | N39: 17.3 | O39: 16.2 | P39: 15.1 | Q39: 13.7 | R39: H=-0.0002*Q^2-0.0948*Q+20.334 | S39: 0.9998 | U39: 20 | V39: =-0.0002*Q^2-0.0948*Q+20.334 -> 18.358 | Y39: 80 | Z39: Bridado | AA39: 80 | AB39: Trifásico | AC39: 5.5 | AD39: 2850 | AE39: 570 | AF39: 110 | AG39: e=-0.0114*Q^2+0.9086*Q+38.415 | AH39: =-0.0114*Q^2+0.9086*Q+38.415 -> 52.027 | AI39: 3600000
A40: BOMBAS IDEAL | B40: ARS | C40: ARS 80-19V/10 | D40: 0 | E40: 10 | F40: 20 | G40: 30 | H40: 40 | I40: 50 | J40: 65.8 | K40: 28.5 | L40: 26.5 | M40: 24.5 | N40: 22.3 | O40: 20 | P40: 17.5 | Q40: 13.7 | R40: H=-0.0005*Q^2-0.1935*Q+28.512 | S40: 0.9999 | U40: 20 | V40: =-0.0005*Q^2-0.1935*Q+28.512 -> 24.442 | Y40: 70 | Z40: Bridado | AA40: 80 | AB40: Trifásico | AC40: 7 | AD40: 2850 | AE40: 449 | AF40: 110 | AG40: e=-0.0105*Q^2+0.8741*Q+43.573 | AH40: =-0.0105*Q^2+0.8741*Q+43.573 -> 56.855 | AI40: 3700000
A41: BOMBAS IDEAL | B41: ARS | C41: ARS 80-20V/22 | D41: 0 | E41: 10 | F41: 20 | G41: 30 | H41: 40 | I41: 50 | J41: 60.08 | K41: 46.7 | L41: 45 | M41: 43.2 | N41: 41.2 | O41: 39.1 | P41: 37 | Q41: 34.7 | R41: H=-0.0005*Q^2-0.1673*Q+46.719 | S41: 1 | U41: 20 | V41: =-0.0005*Q^2-0.1673*Q+46.719 -> 43.173 | Y41: 50 | Z41: Bridado | AA41: 80 | AB41: Trifásico | AC41: 15.7 | AD41: 2850 | AE41: 640 | AF41: 110 | AG41: e=-0.0119*Q^2+0.9279*Q+48.336 | AH41: =-0.0119*Q^2+0.9279*Q+48.336 -> 62.134 | AI41: 3800000
A42: BOMBAS IDEAL | B42: ARS | C42: ARS 65-18V/1 | D42: 0 | E42: 10 | F42: 20 | G42: 25 | H42: 30 | I42: 40 | J42: 44.2 | K42: 6.7 | L42: 5.5 | M42: 4.2 | N42: 3.5 | O42: 2.7 | P42: 1 | Q42: 0.3 | R42: H=-0.0008*Q^2-0.1076*Q+6.689 | S42: 0.9999 | U42: 20 | V42: =-0.0008*Q^2-0.1076*Q+6.689 -> 4.217 | Y42: 50 | Z42: Roscado | AA42: 65 | AB42: Trifásico | AC42: 0.8 | AD42: 1450 | AE42: 383 | AF42: 110 | AG42: e=-0.0176*Q^2+1.0998*Q+53.177 | AH42: =-0.0176*Q^2+1.0998*Q+53.177 -> 68.133 | AI42: 3900000
A43: BOMBAS IDEAL | B43: ARS | C43: ARS 65-18V/1,5 | D43: 0 | E43: 10 | F43: 20 | G43: 25 | H43: 30 | I43: 40 | J43: 46.3 | K43: 8 | L43: 6.7 | M43: 5.3 | N43: 4.65 | O43: 3.8 | P43: 2.2 | Q43: 1.1 | R43: H=-0.0006*Q^2-0.121*Q+7.9886 | S43: 0.9998 | U43: 20 | V43: =-0.0006*Q^2-0.121*Q+7.9886 -> 5.3286 | Y43: 50 | Z43: Roscado | AA43: 65 | AB43: Trifásico | AC43: 0.9 | AD43: 1450 | AE43: 383 | AF43: 110 | AG43: e=-0.0146*Q^2+1.0104*Q+33.436 | AH43: =-0.0146*Q^2+1.0104*Q+33.436 -> 47.804 | AI43: 4000000
A44: BOMBAS IDEAL | B44: ARS | C44: ARS 65-18V/1,7 | D44: 0 | E44: 10 | F44: 20 | G44: 30 | H44: 40 | I44: 50 | J44: 51.5 | K44: 9.6 | L44: 8.1 | M44: 6.6 | N44: 4.9 | O44: 3.1 | P44: 1.3 | Q44: 1 | R44: H=-0.0005*Q^2-0.1423*Q+9.5968 | S44: 0.9999 | U44: 20 | V44: =-0.0005*Q^2-0.1423*Q+9.5968 -> 6.5508 | W44: OK | Y44: 50 | Z44: Roscado | AA44: 65 | AB44: Trifásico | AC44: 1.2 | AD44: 1450 | AE44: 383 | AF44: 110 | AG44: e=-0.0125*Q^2+0.9344*Q+38.421 | AH44: =-0.0125*Q^2+0.9344*Q+38.421 -> 52.109 | AI44: 4100000
A45: BOMBAS IDEAL | B45: ARS | C45: ARS 80-18V/1,5 | D45: 0 | E45: 10 | F45: 20 | G45: 30 | H45: 40 | I45: 50 | J45: 57 | K45: 6.9 | L45: 6.1 | M45: 5.3 | N45: 4.4 | O45: 3.3 | P45: 2.05 | Q45: 1.05 | R45: H=-0.0007*Q^2-0.0624*Q+6.8539 | S45: 0.9996 | U45: 20 | V45: =-0.0007*Q^2-0.0624*Q+6.8539 -> 5.3259 | Y45: 50 | Z45: Bridado | AA45: 80 | AB45: Trifásico | AC45: 1.2 | AD45: 1450 | AE45: 420 | AF45: 110 | AG45: e=-0.0124*Q^2+0.9468*Q+43.276 | AH45: =-0.0124*Q^2+0.9468*Q+43.276 -> 57.252 | AI45: 4200000
A46: BOMBAS IDEAL | B46: ARS | C46: ARS 80-18V/1,7 | D46: 0 | E46: 10 | F46: 20 | G46: 30 | H46: 50 | I46: 60 | J46: 64.8 | K46: 8.2 | L46: 7.3 | M46: 6.3 | N46: 5.2 | O46: 3 | P46: 1.8 | Q46: 1.2 | R46: H=-0.0003*Q^2-0.0917*Q+8.2174 | S46: 0.9999 | U46: 20 | V46: =-0.0003*Q^2-0.0917*Q+8.2174 -> 6.2634 | W46: OK | Y46: 50 | Z46: Bridado | AA46: 80 | AB46: Trifásico | AC46: 1 | AD46: 1450 | AE46: 420 | AF46: 110 | AG46: e=-0.0101*Q^2+0.8729*Q+48.397 | AH46: =-0.0101*Q^2+0.8729*Q+48.397 -> 61.815 | AI46: 4300000
A47: BOMBAS IDEAL | B47: ARS | C47: ARS 80A-19V/1 | D47: 0 | E47: 10 | F47: 20 | G47: 30 | H47: 40 | I47: 50 | J47: 55.4 | K47: 4.8 | L47: 4.5 | M47: 4.1 | N47: 3.6 | O47: 2.8 | P47: 2 | Q47: 1.4 | R47: H=-0.0008*Q^2-0.0177*Q+4.782 | S47: 0.9993 | U47: 20 | V47: =-0.0008*Q^2-0.0177*Q+4.782 -> 4.108 | Y47: 75 | Z47: Bridado | AA47: 80 | AB47: Trifásico | AC47: 0.8 | AD47: 1450 | AE47: 530 | AF47: 110 | AG47: e=-0.0126*Q^2+0.9507*Q+53.28 | AH47: =-0.0126*Q^2+0.9507*Q+53.28 -> 67.254 | AI47: 4400000
A48: BOMBAS IDEAL | B48: ARS | C48: ARS 80A-19V/1,5 | D48: 0 | E48: 10 | F48: 20 | G48: 30 | H48: 50 | I48: 70 | J48: 72.4 | K48: 6.2 | L48: 5.9 | M48: 5.6 | N48: 5.1 | O48: 3.8 | P48: 2 | Q48: 1.8 | R48: H=-0.0006*Q^2-0.0186*Q+6.1832 | S48: 0.9998 | U48: 20 | V48: =-0.0006*Q^2-0.0186*Q+6.1832 -> 5.5712 | Y48: 75 | Z48: Bridado | AA48: 80 | AB48: Trifásico | AC48: 1.1 | AD48: 1450 | AE48: 530 | AF48: 110 | AG48: e=-0.0079*Q^2+0.7835*Q+33.807 | AH48: =-0.0079*Q^2+0.7835*Q+33.807 -> 46.317 | AI48: 4500000
A49: BOMBAS IDEAL | B49: ARS | C49: ARS 100A-26V/7,5E | D49: 0 | E49: 10 | F49: 20 | G49: 30 | H49: 40 | I49: 50 | J49: 53.5 | K49: 20 | L49: 19.3 | M49: 18.7 | N49: 18 | O49: 17.3 | P49: 16.5 | Q49: 16.3 | R49: H=-0.0001*Q^2-0.0623*Q+19.98 | S49: 0.9995 | U49: 20 | V49: =-0.0001*Q^2-0.0623*Q+19.98 -> 18.694 | Y49: 100 | Z49: Bridado | AA49: 100 | AB49: Trifásico | AC49: 5.5 | AD49: 1450 | AE49: 629 | AF49: 110 | AG49: e=-0.0127*Q^2+0.9479*Q+38.323 | AH49: =-0.0127*Q^2+0.9479*Q+38.323 -> 52.201 | AI49: 4600000
A50: BOMBAS IDEAL | B50: ARS | C50: ARS 50-14MI/2 | D50: 0 | E50: 2.5 | F50: 5 | G50: 7.5 | H50: 10 | I50: 15 | J50: 17.9 | K50: 25 | L50: 23.8 | M50: 22.5 | N50: 21.3 | O50: 20 | P50: 17 | Q50: 15.1 | R50: H=-0.0059*Q^2-0.4436*Q+24.958 | S50: 0.9998 | U50: 20 | V50: =-0.0059*Q^2-0.4436*Q+24.958 -> 13.726 | Y50: 25 | Z50: Bridado | AA50: 50 | AB50: Trifásico | AC50: 1.5 | AD50: 2850 | AE50: 297 | AF50: 110 | AG50: e=-0.1538*Q^2+3.4169*Q+43.557 | AH50: =-0.1538*Q^2+3.4169*Q+43.557 -> 50.375 | AI50: 4700000
A51: BOMBAS IDEAL | B51: ARS | C51: ARS 50-14MI/1,4 | D51: 0 | E51: 5 | F51: 7.5 | G51: 10 | H51: 15 | I51: 20 | J51: 24.8 | K51: 17.2 | L51: 15 | M51: 13.8 | N51: 12.7 | O51: 10.6 | P51: 8 | Q51: 5.8 | R51: H=-0.0011*Q^2-0.4332*Q+17.18 | S51: 0.9996 | U51: 20 | V51: =-0.0011*Q^2-0.4332*Q+17.18 -> 8.076 | W51: OK | Y51: 25 | Z51: Bridado | AA51: 50 | AB51: Trifásico | AC51: 1 | AD51: 2850 | AE51: 297 | AF51: 110 | AG51: e=-0.076*Q^2+2.3971*Q+47.962 | AH51: =-0.076*Q^2+2.3971*Q+47.962 -> 65.504 | AI51: 4800000
A52: BOMBAS IDEAL | B52: ARS | C52: ARS 50-14MI/1 | D52: 0 | E52: 2.5 | F52: 5 | G52: 7.5 | H52: 10 | I52: 15 | J52: 18.8 | K52: 13 | L52: 11.6 | M52: 10.3 | N52: 9.1 | O52: 7.9 | P52: 5.4 | Q52: 3.1 | R52: H=-0.0013*Q^2-0.4914*Q+12.898 | S52: 0.9991 | U52: 20 | V52: =-0.0013*Q^2-0.4914*Q+12.898 -> 2.55 | Y52: 25 | Z52: Bridado | AA52: 50 | AB52: Trifásico | AC52: 0.8 | AD52: 2850 | AE52: 297 | AF52: 110 | AG52: e=-0.143*Q^2+3.2879*Q+53.747 | AH52: =-0.143*Q^2+3.2879*Q+53.747 -> 62.305 | AI52: 4900000
A53: BOMBAS IDEAL | B53: ARS | C53: ARS 80-14MI/3 | D53: 0 | E53: 5 | F53: 10 | G53: 15 | H53: 20 | I53: 25 | J53: 30 | K53: 24 | L53: 22 | M53: 20 | N53: 18 | O53: 16.1 | P53: 14.2 | Q53: 12 | R53: H=-0.0001*Q^2-0.3921*Q+23.971 | S53: 0.9998 | U53: 20 | V53: =-0.0001*Q^2-0.3921*Q+23.971 -> 16.089 | Y53: 40 | Z53: Bridado | AA53: 80 | AB53: Trifásico | AC53: 2.2 | AD53: 2850 | AE53: 530 | AF53: 110 | AG53: e=-0.0405*Q^2+1.7071*Q+33.69 | AH53: =-0.0405*Q^2+1.7071*Q+33.69 -> 51.632 | AI53: 5000000
A54: BOMBAS IDEAL | B54: ARS | C54: ARS 80-15MI/4 | D54: 0 | E54: 5 | F54: 10 | G54: 15 | H54: 20 | I54: 25 | J54: 27.6 | K54: 26.4 | L54: 24.5 | M54: 22.6 | N54: 20.5 | O54: 18.4 | P54: 16.3 | Q54: 15 | R54: H=-0.0016*Q^2-0.3666*Q+26.393 | S54: 0.9999 | U54: 20 | V54: =-0.0016*Q^2-0.3666*Q+26.393 -> 18.421 | Y54: 40 | Z54: Bridado | AA54: 80 | AB54: Trifásico | AC54: 3 | AD54: 2850 | AE54: 530 | AF54: 110 | AG54: e=-0.0506*Q^2+1.9016*Q+38.282 | AH54: =-0.0506*Q^2+1.9016*Q+38.282 -> 56.074 | AI54: 5100000
A55: BOMBAS IDEAL | B55: ARS | C55: ARS 80-15MI/2 | D55: 0 | E55: 5 | F55: 10 | G55: 15 | H55: 20 | I55: 25 | J55: 27.8 | K55: 15.5 | L55: 14 | M55: 12.5 | N55: 11 | O55: 9.5 | P55: 8.2 | Q55: 7.2 | R55: H=0.0002*Q^2-0.3026*Q+15.5 | S55: 0.9996 | U55: 20 | V55: =0.0002*Q^2-0.3026*Q+15.5 -> 9.528 | Y55: 30 | Z55: Bridado | AA55: 80 | AB55: Trifásico | AC55: 1.5 | AD55: 2850 | AE55: 530 | AF55: 110 | AG55: e=-0.0505*Q^2+1.9009*Q+43.278 | AH55: =-0.0505*Q^2+1.9009*Q+43.278 -> 61.096 | AI55: 5200000
A56: BOMBAS IDEAL | B56: ARS | C56: ARS 65-13M/2 | D56: 0 | E56: 10 | F56: 15 | G56: 20 | H56: 30 | I56: 40 | J56: 44.39 | K56: 19.5 | L56: 16.1 | M56: 14.2 | N56: 12.3 | O56: 8.1 | P56: 3.4 | Q56: 1.25 | R56: H=-0.0021*Q^2-0.3184*Q+19.489 | S56: 1 | U56: 20 | V56: =-0.0021*Q^2-0.3184*Q+19.489 -> 12.281 | Y56: 30 | Z56: Roscado | AA56: 65 | AB56: Trifásico | AC56: 1.3 | AD56: 2850 | AE56: 383 | AF56: 110 | AG56: e=-0.0211*Q^2+1.2537*Q+47.794 | AH56: =-0.0211*Q^2+1.2537*Q+47.794 -> 64.428 | AI56: 5300000
A57: BOMBAS IDEAL | B57: ARS | C57: ARS 65-14M/3 | D57: 0 | E57: 10 | F57: 20 | G57: 30 | H57: 40 | I57: 50 | J57: 58.3 | K57: 19.9 | L57: 17.5 | M57: 14.9 | N57: 12 | O57: 8.9 | P57: 5.6 | Q57: 2.6 | R57: H=-0.0012*Q^2-0.227*Q+19.898 | S57: 1 | U57: 20 | V57: =-0.0012*Q^2-0.227*Q+19.898 -> 14.878 | Y57: 40 | Z57: Roscado | AA57: 65 | AB57: Trifásico | AC57: 2 | AD57: 2850 | AE57: 383 | AF57: 110 | AG57: e=-0.0122*Q^2+0.9404*Q+53.292 | AH57: =-0.0122*Q^2+0.9404*Q+53.292 -> 67.22 | AI57: 5400000
A58: BOMBAS IDEAL | B58: ARS | C58: ARS 65-14M/2,5 | D58: 0 | E58: 10 | F58: 20 | G58: 30 | H58: 40 | I58: 50 | J58: 53.1 | K58: 18.1 | L58: 15 | M58: 11.9 | N58: 8.7 | O58: 5.4 | P58: 2.1 | Q58: 1 | R58: H=-0.0003*Q^2-0.3029*Q+18.088 | S58: 1 | U58: 20 | V58: =-0.0003*Q^2-0.3029*Q+18.088 -> 11.91 | Y58: 40 | Z58: Roscado | AA58: 65 | AB58: Trifásico | AC58: 1.8 | AD58: 2850 | AE58: 383 | AF58: 110 | AG58: e=-0.0127*Q^2+0.9461*Q+38.338 | AH58: =-0.0127*Q^2+0.9461*Q+38.338 -> 52.18 | AI58: 5500000
A59: BOMBAS IDEAL | B59: ARS | C59: ARS 80-22M/21 | D59: 0 | E59: 10 | F59: 20 | G59: 30 | H59: 40 | I59: 50 | J59: 55.8 | K59: 65.4 | L59: 62.5 | M59: 59.5 | N59: 56.3 | O59: 53 | P59: 49.6 | Q59: 47.6 | R59: H=-0.0006*Q^2-0.2847*Q+65.41 | S59: 1 | U59: 20 | V59: =-0.0006*Q^2-0.2847*Q+65.41 -> 59.476 | Y59: 40 | Z59: Bridado | AA59: 80 | AB59: Trifásico | AC59: 15.2 | AD59: 2850 | AE59: 608 | AF59: 110 | AG59: e=-0.0126*Q^2+0.9502*Q+43.276 | AH59: =-0.0126*Q^2+0.9502*Q+43.276 -> 57.24 | AI59: 5600000
A60: DAB | B60: FEKA | C60: FEKA GL 500 M-A | D60: 0 | E60: 3 | F60: 6 | G60: 9 | H60: 12 | I60: 15 | K60: 8 | L60: 6.9 | M60: 5.8 | N60: 4.6 | O60: 3.2 | P60: 1.8 | R60: H=-0.0054*Q^2-0.332*Q+7.9821 | S60: 0.9998 | U60: 20 | V60: =-0.0054*Q^2-0.332*Q+7.9821 -> -0.8179 | Y60: 30 | Z60: Roscado | AA60: 40 | AB60: Monofásico | AC60: 0.4 | AD60: 2900 | AE60: 400 | AF60: 110 | AG60: e=-0.1885*Q^2+5.0655*Q+28.393 | AH60: =-0.1885*Q^2+5.0655*Q+28.393 -> 54.303 | AI60: 3000000
A61: DAB | B61: FEKA | C61: FEKA GL 650 M-A | D61: 0 | E61: 3 | F61: 6 | G61: 9 | H61: 12 | I61: 15 | J61: 18 | K61: 10 | L61: 8.7 | M61: 7.4 | N61: 6 | O61: 4.75 | P61: 3.3 | Q61: 1.6 | R61: H=-0.0032*Q^2-0.4018*Q+9.9595 | S61: 0.9994 | U61: 20 | V61: =-0.0032*Q^2-0.4018*Q+9.9595 -> 0.6435 | Y61: 30 | Z61: Roscado | AA61: 40 | AB61: Monofásico | AC61: 0.4 | AD61: 2900 | AE61: 400 | AF61: 110 | AG61: e=-0.2447*Q^2+5.7738*Q+32.381 | AH61: =-0.2447*Q^2+5.7738*Q+32.381 -> 49.977 | AI61: 3100000
A62: DAB | B62: FEKA | C62: FEKA GL 750 M-A (NA) | D62: 0 | E62: 3 | F62: 6 | G62: 9 | H62: 12 | I62: 18 | J62: 24 | K62: 7.2 | L62: 6.8 | M62: 6.2 | N62: 5.5 | O62: 4.8 | P62: 3.3 | Q62: 1.6 | R62: H=-0.0029*Q^2-0.1676*Q+7.2609 | S62: 0.9995 | U62: 20 | V62: =-0.0029*Q^2-0.1676*Q+7.2609 -> 2.7489 | Y62: 46 | Z62: Roscado | AA62: 50 | AB62: Monofásico | AC62: 0.6 | AD62: 2900 | AE62: 400 | AF62: 110 | AG62: e=-0.1641*Q^2+4.8038*Q+38.74 | AH62: =-0.1641*Q^2+4.8038*Q+38.74 -> 69.176 | AI62: 3200000
A63: DAB | B63: FEKA | C63: FEKA GL 1000 M-A (NA) | D63: 0 | E63: 3 | F63: 6 | G63: 9 | H63: 15 | I63: 24 | J63: 30 | K63: 11.2 | L63: 10.8 | M63: 10 | N63: 9.1 | O63: 7 | P63: 3.5 | Q63: 1.8 | R63: H=-0.0024*Q^2-0.2596*Q+11.469 | S63: 0.9957 | U63: 20 | V63: =-0.0024*Q^2-0.2596*Q+11.469 -> 5.317 | Y63: 46 | Z63: Roscado | AA63: 50 | AB63: Monofásico | AC63: 1.1 | AD63: 2900 | AE63: 400 | AF63: 110 | AG63: e=-0.1153*Q^2+4.0934*Q+44.927 | AH63: =-0.1153*Q^2+4.0934*Q+44.927 -> 80.675 | AI63: 3300000
A64: DAB | B64: FEKA | C64: FEKA 1400 M | D64: 0 | E64: 6 | F64: 9 | G64: 12 | H64: 15 | I64: 24 | J64: 30 | K64: 13.9 | L64: 12 | M64: 11 | N64: 9.9 | O64: 8.9 | P64: 5.7 | Q64: 3.4 | R64: H=-0.0011*Q^2-0.3167*Q+13.912 | S64: 0.9999 | U64: 20 | V64: =-0.0011*Q^2-0.3167*Q+13.912 -> 7.138 | W64: OK | Y64: 38 | Z64: Roscado | AA64: 50 | AB64: Monofásico | AC64: 1.1 | AD64: 2900 | AE64: 400 | AF64: 110 | AG64: e=-0.0991*Q^2+3.7729*Q+26.751 | AH64: =-0.0991*Q^2+3.7729*Q+26.751 -> 62.569 | AI64: 3400000
A65: DAB | B65: FEKA | C65: FEKA 1800 T | D65: 0 | E65: 6 | F65: 9 | G65: 12 | H65: 15 | I65: 24 | J65: 30 | K65: 15.5 | L65: 13.7 | M65: 12.8 | N65: 11.8 | O65: 10.7 | P65: 7.3 | Q65: 4.5 | R65: H=-0.0032*Q^2-0.267*Q+15.465 | S65: 0.9998 | U65: 20 | V65: =-0.0032*Q^2-0.267*Q+15.465 -> 8.845 | Y65: 38 | Z65: Roscado | AA65: 50 | AB65: Trifásico | AC65: 1.5 | AD65: 2900 | AE65: 400 | AF65: 110 | AG65: e=-0.0991*Q^2+3.7729*Q+31.751 | AH65: =-0.0991*Q^2+3.7729*Q+31.751 -> 67.569 | AI65: 3500000
A66: DAB | B66: FEKA | C66: FEKA 2015.2 MA (MNA) | D66: 0 | E66: 3 | F66: 6 | G66: 12 | H66: 18 | I66: 24 | J66: 36 | K66: 12.5 | L66: 11.5 | M66: 10.5 | N66: 8 | O66: 5.8 | P66: 3.6 | R66: H=-0.0002*Q^2-0.3714*Q+12.583 | S66: 0.9993 | U66: 20 | V66: =-0.0002*Q^2-0.3714*Q+12.583 -> 5.075 | Y66: 42 | Z66: Bridado | AA66: 50 | AB66: Monofásico | AC66: 1.1 | AD66: 2900 | AE66: 400 | AF66: 110 | AG66: e=-0.073*Q^2+3.1002*Q+41.757 | AH66: =-0.073*Q^2+3.1002*Q+41.757 -> 74.561 | AI66: 3600000
A67: DAB | B67: FEKA | C67: FEKA 2015.2 TNA | D67: 0 | E67: 3 | F67: 6 | G67: 12 | H67: 18 | I67: 24 | J67: 36 | K67: 12.5 | L67: 11.5 | M67: 10.5 | N67: 8 | O67: 5.8 | P67: 3.6 | R67: H=-0.0002*Q^2-0.3714*Q+12.583 | S67: 0.9993 | U67: 20 | V67: =-0.0002*Q^2-0.3714*Q+12.583 -> 5.075 | Y67: 42 | Z67: Bridado | AA67: 50 | AB67: Trifásico | AC67: 1.1 | AD67: 2900 | AE67: 400 | AF67: 110 | AG67: e=-0.073*Q^2+3.1002*Q+46.757 | AH67: =-0.073*Q^2+3.1002*Q+46.757 -> 79.561 | AI67: 3700000
A68: DAB | B68: FEKA | C68: FEKA 2025.2 TNA | D68: 0 | E68: 3 | F68: 6 | G68: 12 | H68: 18 | I68: 24 | J68: 36 | K68: 17.5 | L68: 16.5 | M68: 15.6 | N68: 13.6 | O68: 11.6 | P68: 9 | Q68: 3.8 | R68: H=-0.0026*Q^2-0.2859*Q+17.44 | S68: 0.9997 | U68: =Q -> 20 | V68: =-0.0026*Q^2-0.2859*Q+17.44 -> 10.682 | W68: =IF(AND(V68>H-1,V68<H+1,V68>Q68),"OK","") ->  | Y68: 42 | Z68: Bridado | AA68: 50 | AB68: Trifásico | AC68: 1.8 | AD68: 2900 | AE68: 400 | AF68: 110 | AG68: e=-0.073*Q^2+3.1002*Q+31.757 | AH68: =-0.073*Q^2+3.1002*Q+31.757 -> 64.561 | AI68: 3800000
A69: DAB | B69: FEKA | C69: FEKA 2030.2 TNA | D69: 0 | E69: 3 | F69: 6 | G69: 12 | H69: 18 | I69: 24 | J69: 36 | K69: 21 | L69: 19.8 | M69: 18.5 | N69: 16 | O69: 13.8 | P69: 11 | Q69: 6 | R69: H=-0.0004*Q^2-0.4029*Q+20.983 | S69: 0.9997 | U69: 20 | V69: =-0.0004*Q^2-0.4029*Q+20.983 -> 12.765 | Y69: 42 | Z69: Bridado | AA69: 50 | AB69: Trifásico | AC69: 2.2 | AD69: 2900 | AE69: 400 | AF69: 110 | AG69: e=-0.073*Q^2+3.1002*Q+36.757 | AH69: =-0.073*Q^2+3.1002*Q+36.757 -> 69.561 | AI69: 3900000
A70: DAB | B70: FEKA | C70: FEKA 2508.4M-NA | D70: 0 | E70: 3 | F70: 6 | G70: 12 | H70: 18 | I70: 24 | J70: 36 | K70: 5.4 | L70: 5.1 | M70: 4.8 | N70: 4.1 | O70: 3.4 | P70: 2.6 | Q70: 1 | R70: H=-0.0006*Q^2-0.1026*Q+5.4139 | S70: 0.9999 | U70: 20 | V70: =-0.0006*Q^2-0.1026*Q+5.4139 -> 3.1219 | Y70: 62 | Z70: Bridado | AA70: 65 | AB70: Monofásico | AC70: 0.6 | AD70: 2900 | AE70: 400 | AF70: 110 | AG70: e=-0.073*Q^2+3.1002*Q+41.757 | AH70: =-0.073*Q^2+3.1002*Q+41.757 -> 74.561 | AI70: =AI69+100000 -> 4000000
A71: DAB | B71: FEKA | C71: FEKA 2508.4T | D71: 0 | E71: 3 | F71: 6 | G71: 12 | H71: 18 | I71: 24 | J71: 36 | K71: 5.4 | L71: 5.1 | M71: 4.8 | N71: 4.1 | O71: 3.4 | P71: 2.6 | Q71: 1 | R71: H=-0.0006*Q^2-0.1026*Q+5.4139 | S71: 0.9999 | U71: 20 | V71: =-0.0006*Q^2-0.1026*Q+5.4139 -> 3.1219 | Y71: 62 | Z71: Bridado | AA71: 65 | AB71: Trifásico | AC71: 0.6 | AD71: 2900 | AE71: 400 | AF71: 110 | AG71: e=-0.073*Q^2+3.1002*Q+46.757 | AH71: =-0.073*Q^2+3.1002*Q+46.757 -> 79.561 | AI71: 4100000
A72: DAB | B72: FEKA | C72: FEKA 2515.4T | D72: 0 | E72: 3 | F72: 12 | G72: 18 | H72: 24 | I72: 36 | J72: 48 | K72: 6.2 | L72: 6.1 | M72: 5.5 | N72: 5 | O72: 4.5 | P72: 3.1 | Q72: 1.4 | R72: H=-0.0011*Q^2-0.0452*Q+6.2163 | S72: 0.9998 | U72: 20 | V72: =-0.0011*Q^2-0.0452*Q+6.2163 -> 4.8723 | Y72: 62 | Z72: Bridado | AA72: 65 | AB72: Trifásico | AC72: 1.1 | AD72: 2900 | AE72: 400 | AF72: 110 | AG72: e=-0.0391*Q^2+2.2581*Q+31.247 | AH72: =-0.0391*Q^2+2.2581*Q+31.247 -> 60.769 | AI72: 4200000
A73: DAB | B73: FEKA | C73: FEKA 2500.4T | D73: 0 | E73: 3 | F73: 12 | G73: 18 | H73: 24 | I73: 36 | J73: 48 | K73: 8 | L73: 7.8 | M73: 7.2 | N73: 6.7 | O73: 6.3 | P73: 5.4 | Q73: 4.4 | R73: H=-0.0002*Q^2-0.0671*Q+8.0016 | S73: 0.9997 | U73: 20 | V73: =-0.0002*Q^2-0.0671*Q+8.0016 -> 6.5796 | W73: OK | Y73: 62 | Z73: Bridado | AA73: 65 | AB73: Trifásico | AC73: 1.4 | AD73: 2900 | AE73: 400 | AF73: 110 | AG73: e=-0.0391*Q^2+2.2581*Q+36.247 | AH73: =-0.0391*Q^2+2.2581*Q+36.247 -> 65.769 | AI73: 4300000
A74: DAB | B74: FEKA | C74: FEKA 2515.2T | D74: 0 | E74: 3 | F74: 6 | G74: 12 | H74: 18 | I74: 24 | J74: 36 | K74: 9.3 | L74: 8.8 | M74: 8.4 | N74: 7.6 | O74: 6.5 | P74: 5.3 | Q74: 3 | R74: H=-0.0011*Q^2-0.1353*Q+9.2755 | S74: 0.9991 | U74: 20 | V74: =-0.0011*Q^2-0.1353*Q+9.2755 -> 6.1295 | Y74: 62 | Z74: Bridado | AA74: 65 | AB74: Trifásico | AC74: 1.1 | AD74: 2900 | AE74: 400 | AF74: 110 | AG74: e=-0.073*Q^2+3.1002*Q+41.757 | AH74: =-0.073*Q^2+3.1002*Q+41.757 -> 74.561 | AI74: 4400000
A75: DAB | B75: FEKA | C75: FEKA 2500.2T | D75: 0 | E75: 3 | F75: 12 | G75: 18 | H75: 24 | I75: 36 | J75: 48 | K75: 14 | L75: 13.5 | M75: 12 | N75: 11 | O75: 10 | P75: 7.5 | Q75: 4 | R75: H=-0.0016*Q^2-0.1249*Q+13.892 | S75: 0.9984 | U75: 20 | V75: =-0.0016*Q^2-0.1249*Q+13.892 -> 10.754 | Y75: 62 | Z75: Bridado | AA75: 65 | AB75: Trifásico | AC75: 1.8 | AD75: 2900 | AE75: 400 | AF75: 110 | AG75: e=-0.0391*Q^2+2.2581*Q+46.247 | AH75: =-0.0391*Q^2+2.2581*Q+46.247 -> 75.769 | AI75: 4500000
A76: DAB | B76: FEKA | C76: FEKA 2700.2T | D76: 0 | E76: 3 | F76: 12 | G76: 18 | H76: 24 | I76: 36 | J76: 48 | K76: 16.5 | L76: 15.5 | M76: 13.6 | N76: 12.5 | O76: 11.4 | P76: 9 | Q76: 5.5 | R76: H=-0.0007*Q^2-0.1873*Q+16.212 | S76: 0.9956 | U76: 20 | V76: =-0.0007*Q^2-0.1873*Q+16.212 -> 12.186 | Y76: 62 | Z76: Bridado | AA76: 65 | AB76: Trifásico | AC76: 2.18 | AD76: 2900 | AE76: 400 | AF76: 110 | AG76: e=-0.0391*Q^2+2.2581*Q+31.247 | AH76: =-0.0391*Q^2+2.2581*Q+31.247 -> 60.769 | AI76: 4600000
A77: DAB | B77: FEKA | C77: FEKA 3030.4T | D77: 0 | E77: 12 | F77: 24 | G77: 36 | H77: 48 | I77: 60 | J77: 72 | K77: 6 | L77: 5.6 | M77: 5.1 | N77: 4.4 | O77: 3.8 | P77: 3.1 | Q77: 2.4 | R77: H=-0.0002*Q^2-0.0372*Q+6.0381 | S77: 0.999 | U77: 20 | V77: =-0.0002*Q^2-0.0372*Q+6.0381 -> 5.2141 | Y77: 80 | Z77: Bridado | AA77: 80 | AB77: Trifásico | AC77: 1.8 | AD77: 2900 | AE77: 400 | AF77: 110 | AG77: e=-0.0153*Q^2+1.4435*Q+32.381 | AH77: =-0.0153*Q^2+1.4435*Q+32.381 -> 55.131 | AI77: 4700000
A78: DAB | B78: FEKA | C78: FEKA 3030.2T | D78: 0 | E78: 12 | F78: 18 | G78: 24 | H78: 36 | I78: 48 | J78: 60 | K78: 12 | L78: 9.5 | M78: 8.3 | N78: 7 | O78: 5 | P78: 3.2 | Q78: 1.8 | R78: H=0.001*Q^2-0.2315*Q+12.058 | S78: 0.9997 | U78: 20 | V78: =0.001*Q^2-0.2315*Q+12.058 -> 7.828 | W78: OK | Y78: 67 | Z78: Bridado | AA78: 80 | AB78: Trifásico | AC78: 2.3 | AD78: 2900 | AE78: 400 | AF78: 110 | AG78: e=-0.024*Q^2+1.8437*Q+36.833 | AH78: =-0.024*Q^2+1.8437*Q+36.833 -> 64.107 | AI78: 4800000
A79: DAB | B79: FEKA | C79: FEKA 3040.2T | D79: 0 | E79: 12 | F79: 18 | G79: 24 | H79: 36 | I79: 48 | J79: 60 | K79: 15.4 | L79: 13.2 | M79: 12 | N79: 10.8 | O79: 8 | P79: 5.4 | Q79: 3 | R79: H=-0.0003*Q^2-0.1951*Q+15.505 | S79: 0.9991 | U79: 20 | V79: =-0.0003*Q^2-0.1951*Q+15.505 -> 11.483 | Y79: 67 | Z79: Bridado | AA79: 80 | AB79: Trifásico | AC79: 2.9 | AD79: 2900 | AE79: 400 | AF79: 110 | AG79: e=-0.024*Q^2+1.8437*Q+41.833 | AH79: =-0.024*Q^2+1.8437*Q+41.833 -> 69.107 | AI79: 4900000
A80: DAB | B80: FEKA | C80: FEKA 3000.2T | D80: 0 | E80: 12 | F80: 24 | G80: 36 | H80: 48 | I80: 60 | J80: 72 | K80: 18.7 | L80: 17.5 | M80: 15.3 | N80: 12.6 | O80: 9.4 | P80: 6.2 | Q80: 4 | R80: H=-0.0009*Q^2-0.1506*Q+19.081 | S80: 0.9943 | U80: 20 | V80: =-0.0009*Q^2-0.1506*Q+19.081 -> 15.709 | Y80: 67 | Z80: Bridado | AA80: 80 | AB80: Trifásico | AC80: 3.6 | AD80: 2900 | AE80: 400 | AF80: 110 | AG80: e=-0.0153*Q^2+1.4435*Q+27.381 | AH80: =-0.0153*Q^2+1.4435*Q+27.381 -> 50.131 | AI80: 5000000
A81: DAB | B81: FEKA | C81: FEKA RC 3500.2T | D81: 0 | E81: 12 | F81: 18 | G81: 24 | H81: 36 | I81: 48 | J81: 60 | K81: 28 | L81: 25.5 | M81: 24.3 | N81: 23 | O81: 20.6 | P81: 18 | Q81: 15.6 | R81: H=2E-06*Q^2-0.2072*Q+28 | S81: 0.9999 | U81: 20 | V81: =0.000002*Q^2-0.2072*Q+28 -> 23.8568 | Y81: 50 | Z81: Bridado | AA81: 80 | AB81: Trifásico | AC81: 4.5 | AD81: 2900 | AE81: 400 | AF81: 110 | AG81: e=-0.024*Q^2+1.8437*Q+31.833 | AH81: =-0.024*Q^2+1.8437*Q+31.833 -> 59.107 | AI81: 5100000
A82: DAB | B82: FEKA | C82: FEKA RC 3700.2T | D82: 0 | E82: 12 | F82: 24 | G82: 36 | H82: 48 | I82: 60 | J82: 72 | K82: 32.9 | L82: 29.4 | M82: 26.8 | N82: 24.8 | O82: 22.8 | P82: 20.1 | Q82: 16 | R82: H=-0.0003*Q^2-0.1973*Q+32.331 | S82: 0.9888 | U82: 20 | V82: =-0.0003*Q^2-0.1973*Q+32.331 -> 28.265 | Y82: 50 | Z82: Bridado | AA82: 80 | AB82: Trifásico | AC82: 5.4 | AD82: 2900 | AE82: 400 | AF82: 110 | AG82: e=-0.0153*Q^2+1.4435*Q+37.381 | AH82: =-0.0153*Q^2+1.4435*Q+37.381 -> 60.131 | AI82: 5200000
A83: EBARA | B83: DRV | C83: DRV/A32-090-0.5M | D83: 2.4 | E83: 3.6 | F83: 4.8 | G83: 6 | H83: 9 | I83: 12 | K83: 7 | L83: 6.5 | M83: 6.1 | N83: 5.6 | O83: 4.2 | P83: 2.6 | R83: H=-0.0117*Q^2-0.2868*Q+7.732 | S83: 0.9998 | U83: 20 | V83: =-0.0117*Q^2-0.2868*Q+7.732 -> -2.684 | Y83: 30 | Z83: Roscado | AA83: 32 | AB83: Monofásico | AC83: 0.5 | AD83: 2900 | AE83: 203 | AF83: 110 | AG83: e=-0.8304*Q^2+14.804*Q+11.972 | AH83: =-0.8304*Q^2+14.804*Q+11.972 -> -24.108 | AI83: 3000000
A84: EBARA | B84: DRV | C84: DRV/A32-090-0.5 | D84: 2.4 | E84: 3.6 | F84: 4.8 | G84: 6 | H84: 9 | I84: 12 | K84: 6.8 | L84: 5.9 | M84: 5.4 | N84: 4.8 | O84: 3.2 | P84: 1.6 | R84: H=0.0019*Q^2-0.5568*Q+8.0302 | S84: 0.9981 | U84: 20 | V84: =0.0019*Q^2-0.5568*Q+8.0302 -> -2.3458 | Y84: 30 | Z84: Roscado | AA84: 32 | AB84: Trifásico | AC84: 0.5 | AD84: 2900 | AE84: 203 | AF84: 110 | AG84: e=-0.9034*Q^2+15.575*Q+8.1338 | AH84: =-0.9034*Q^2+15.575*Q+8.1338 -> -41.7262 | AI84: 3100000
A85: EBARA | B85: DRV | C85: DRV/A50-120-1.1M | D85: 2.4 | E85: 3.6 | F85: 6 | G85: 9 | H85: 12 | I85: 18 | J85: 24 | K85: 8.5 | L85: 8.1 | M85: 7.3 | N85: 6.3 | O85: 5.3 | P85: 3.4 | Q85: 1.6 | R85: H=0.0011*Q^2-0.3496*Q+9.3443 | S85: 1 | U85: 20 | V85: =0.0011*Q^2-0.3496*Q+9.3443 -> 2.7923 | Y85: 48 | Z85: Bridado | AA85: 50 | AB85: Monofásico | AC85: 1.1 | AD85: 2900 | AE85: 358 | AF85: 110 | AG85: e=-0.1646*Q^2+5.0489*Q+36.499 | AH85: =-0.1646*Q^2+5.0489*Q+36.499 -> 71.637 | AI85: 3200000
A86: EBARA | B86: DRV | C86: DRV/A50-120-1.4 | D86: 2.4 | E86: 3.6 | F86: 6 | G86: 9 | H86: 12 | I86: 18 | J86: 24 | K86: 9.3 | L86: 8.9 | M86: 8.2 | N86: 7.2 | O86: 6.3 | P86: 4.4 | Q86: 2.5 | R86: H=-0.0001*Q^2-0.3113*Q+10.041 | S86: 0.9999 | U86: 20 | V86: =-0.0001*Q^2-0.3113*Q+10.041 -> 3.775 | Y86: 48 | Z86: Bridado | AA86: 50 | AB86: Trifásico | AC86: 1.4 | AD86: 2900 | AE86: 358 | AF86: 110 | AG86: e=-0.1646*Q^2+5.0489*Q+36.499 | AH86: =-0.1646*Q^2+5.0489*Q+36.499 -> 71.637 | AI86: 3300000
A87: EBARA | B87: DRV | C87: DRV/A50-135-1.4 | D87: 2.4 | E87: 6 | F87: 9 | G87: 12 | H87: 18 | I87: 24 | J87: 33 | K87: 11.5 | L87: 10.3 | M87: 9.4 | N87: 8.4 | O87: 6.4 | P87: 4.5 | Q87: 1.4 | R87: H=-0.0004*Q^2-0.3151*Q+12.24 | S87: 0.9999 | U87: 20 | V87: =-0.0004*Q^2-0.3151*Q+12.24 -> 5.778 | Y87: 48 | Z87: Bridado | AA87: 50 | AB87: Trifásico | AC87: 1.4 | AD87: 2900 | AE87: 358 | AF87: 110 | AG87: e=-0.0858*Q^2+3.6368*Q+36.26 | AH87: =-0.0858*Q^2+3.6368*Q+36.26 -> 74.676 | AI87: 3400000
A88: EBARA | B88: DRV | C88: DRV/A50-130-1.1M | D88: 2.4 | E88: 6 | F88: 9 | G88: 12 | H88: 18 | I88: 24 | J88: 33 | K88: 10.5 | L88: 9.8 | M88: 9 | N88: 8.1 | O88: 6.2 | P88: 4.3 | Q88: 1.2 | R88: H=-0.0021*Q^2-0.2352*Q+11.194 | S88: 0.9994 | U88: 20 | V88: =-0.0021*Q^2-0.2352*Q+11.194 -> 5.65 | Y88: 50 | Z88: Bridado | AA88: 50 | AB88: Monofásico | AC88: 1.1 | AD88: 2900 | AE88: 339 | AF88: 110 | AG88: e=-0.1196*Q^2+5.229*Q+16.776 | AH88: =-0.1196*Q^2+5.229*Q+16.776 -> 73.516 | AI88: 3500000
A89: EBARA | B89: DRV | C89: DRV/A50-140-1.8M | D89: 2.4 | E89: 6 | F89: 9 | G89: 12 | H89: 18 | I89: 24 | J89: 36 | K89: 12 | L89: 11 | M89: 10.2 | N89: 9.4 | O89: 6.8 | P89: 5.8 | Q89: 1 | R89: H=-0.0015*Q^2-0.2667*Q+12.661 | S89: 0.9939 | U89: 20 | V89: =-0.0015*Q^2-0.2667*Q+12.661 -> 6.727 | W89: OK | Y89: 50 | Z89: Bridado | AA89: 50 | AB89: Monofásico | AC89: 1.8 | AD89: 2900 | AE89: 339 | AF89: 110 | AG89: e=-0.0571*Q^2+2.638*Q+39.338 | AH89: =-0.0571*Q^2+2.638*Q+39.338 -> 69.258 | AI89: 3600000
A90: EBARA | B90: DRV | C90: DRV/A50-155-1.8M | D90: 2.4 | E90: 6 | F90: 9 | G90: 12 | H90: 18 | I90: 24 | J90: 36 | K90: 14 | L90: 12.7 | M90: 11.8 | N90: 10.5 | O90: 8.5 | P90: 6.4 | Q90: 3 | R90: H=0.0016*Q^2-0.3921*Q+15.013 | S90: 0.9993 | U90: 20 | V90: =0.0016*Q^2-0.3921*Q+15.013 -> 7.811 | W90: OK | Y90: 50 | Z90: Bridado | AA90: 50 | AB90: Monofásico | AC90: 1.8 | AD90: 2900 | AE90: 339 | AF90: 110 | AG90: e=-0.0708*Q^2+3.2442*Q+37.989 | AH90: =-0.0708*Q^2+3.2442*Q+37.989 -> 74.553 | AI90: 3700000
A91: EBARA | B91: DRV | C91: DRV/A50-140-1.4 | D91: 2.4 | E91: 6 | F91: 9 | G91: 12 | H91: 18 | I91: 24 | J91: 36 | K91: 12.2 | L91: 11.5 | M91: 10.6 | N91: 9.9 | O91: 8 | P91: 6 | Q91: 1 | R91: H=-0.0037*Q^2-0.1931*Q+12.71 | S91: 0.9998 | U91: 20 | V91: =-0.0037*Q^2-0.1931*Q+12.71 -> 7.368 | W91: OK | Y91: 50 | Z91: Bridado | AA91: 50 | AB91: Trifásico | AC91: 1.4 | AD91: 2900 | AE91: 339 | AF91: 110 | AG91: e=-0.0571*Q^2+2.638*Q+39.338 | AH91: =-0.0571*Q^2+2.638*Q+39.338 -> 69.258 | AI91: 3800000
A92: EBARA | B92: DRV | C92: DRV/A50-155-2.4 | D92: 2.4 | E92: 6 | F92: 9 | G92: 12 | H92: 18 | I92: 24 | J92: 36 | K92: 14.6 | L92: 13.4 | M92: 12.4 | N92: 11.6 | O92: 9.5 | P92: 7.7 | Q92: 3.6 | R92: H=-0.0004*Q^2-0.3115*Q+15.308 | S92: 0.9997 | U92: 20 | V92: =-0.0004*Q^2-0.3115*Q+15.308 -> 8.918 | Y92: 50 | Z92: Bridado | AA92: 50 | AB92: Trifásico | AC92: 2.4 | AD92: 2900 | AE92: 339 | AF92: 110 | AG92: e=-0.0763*Q^2+3.0947*Q+39.356 | AH92: =-0.0763*Q^2+3.0947*Q+39.356 -> 70.73 | AI92: 3900000
A93: EBARA | B93: DRV | C93: DRV/A65-108-1.9M | D93: 6 | E93: 12 | F93: 18 | G93: 24 | H93: 30 | I93: 36 | J93: 48 | K93: 9.2 | L93: 7.8 | M93: 6.5 | N93: 5 | O93: 3.9 | P93: 2.8 | Q93: 1 | R93: H=0.0014*Q^2-0.2744*Q+10.851 | S93: 0.9994 | U93: 20 | V93: =0.0014*Q^2-0.2744*Q+10.851 -> 5.923 | Y93: 65 | Z93: Bridado | AA93: 65 | AB93: Monofásico | AC93: 1.9 | AD93: 2900 | AE93: 367 | AF93: 110 | AG93: e=-0.0417*Q^2+2.7497*Q+27.769 | AH93: =-0.0417*Q^2+2.7497*Q+27.769 -> 66.083 | AI93: 4000000
A94: EBARA | B94: DRV | C94: DRV/A65-108-2.3 | D94: 6 | E94: 12 | F94: 18 | G94: 24 | H94: 30 | I94: 36 | J94: 48 | K94: 9.4 | L94: 7.9 | M94: 6.4 | N94: 5.1 | O94: 3.9 | P94: 2.9 | Q94: 1 | R94: H=0.0016*Q^2-0.286*Q+11.064 | S94: 0.9999 | U94: 20 | V94: =0.0016*Q^2-0.286*Q+11.064 -> 5.984 | Y94: 65 | Z94: Bridado | AA94: 65 | AB94: Trifásico | AC94: 2.3 | AD94: 2900 | AE94: 367 | AF94: 110 | AG94: e=-0.0335*Q^2+2.2237*Q+31.136 | AH94: =-0.0335*Q^2+2.2237*Q+31.136 -> 62.21 | AI94: 4100000
A95: EBARA | B95: DRV | C95: DRV/A65-119-2.3 | D95: 6 | E95: 12 | F95: 18 | G95: 24 | H95: 30 | I95: 36 | J95: 48 | K95: 10.8 | L95: 9.2 | M95: 7.6 | N95: 6.3 | O95: 4.8 | P95: 3.5 | Q95: 1.3 | R95: H=0.0012*Q^2-0.2938*Q+12.532 | S95: 0.9997 | U95: 20 | V95: =0.0012*Q^2-0.2938*Q+12.532 -> 7.136 | W95: OK | Y95: 65 | Z95: Bridado | AA95: 65 | AB95: Trifásico | AC95: 2.3 | AD95: 2900 | AE95: 367 | AF95: 110 | AG95: e=-0.0417*Q^2+2.7497*Q+27.769 | AH95: =-0.0417*Q^2+2.7497*Q+27.769 -> 66.083 | AI95: 4200000
A96: EBARA | B96: DRV | C96: DRV/A65-105-3.2 | D96: 6 | E96: 12 | F96: 18 | G96: 30 | H96: 42 | I96: 54 | J96: 60 | K96: 11.5 | L96: 10 | M96: 8.8 | N96: 6.6 | O96: 4.3 | P96: 2.3 | Q96: 1.2 | R96: H=0.0005*Q^2-0.2211*Q+12.695 | S96: 0.9995 | U96: 20 | V96: =0.0005*Q^2-0.2211*Q+12.695 -> 8.473 | Y96: 65 | Z96: Bridado | AA96: 65 | AB96: Trifásico | AC96: 3.2 | AD96: 2900 | AE96: 399 | AF96: 110 | AG96: e=-0.034*Q^2+2.4213*Q+30.195 | AH96: =-0.034*Q^2+2.4213*Q+30.195 -> 65.021 | AI96: 4300000
A97: EBARA | B97: DRV | C97: DRV/A65-112-4.1 | D97: 6 | E97: 12 | F97: 18 | G97: 30 | H97: 42 | I97: 54 | J97: 60 | K97: 14.3 | L97: 13.1 | M97: 11.9 | N97: 9.6 | O97: 7.5 | P97: 5.9 | Q97: 3.6 | R97: H=-0.0001*Q^2-0.1798*Q+15.274 | S97: 0.9922 | U97: 20 | V97: =-0.0001*Q^2-0.1798*Q+15.274 -> 11.638 | Y97: 65 | Z97: Bridado | AA97: 65 | AB97: Trifásico | AC97: 4.1 | AD97: 2900 | AE97: 426 | AF97: 110 | AG97: e=-0.0211*Q^2+1.6968*Q+35.037 | AH97: =-0.0211*Q^2+1.6968*Q+35.037 -> 60.533 | AI97: 4400000
A98: EBARA | B98: DRV | C98: DRV/A80-155-1.8M | D98: 6 | E98: 12 | F98: 18 | G98: 24 | H98: 30 | I98: 36 | J98: 48 | K98: 8 | L98: 7.1 | M98: 6.1 | N98: 5.3 | O98: 4.3 | P98: 3.5 | Q98: 1.9 | R98: H=0.0004*Q^2-0.1664*Q+9.0062 | S98: 0.9996 | U98: 20 | V98: =0.0004*Q^2-0.1664*Q+9.0062 -> 5.8382 | Y98: 60 | Z98: Bridado | AA98: 80 | AB98: Monofásico | AC98: 1.8 | AD98: 2900 | AE98: 418 | AF98: 110 | AG98: e=-0.0417*Q^2+2.7497*Q+27.769 | AH98: =-0.0417*Q^2+2.7497*Q+27.769 -> 66.083 | AI98: 4500000
A99: EBARA | B99: DRV | C99: DRV/A80-155-2.4 | D99: 6 | E99: 12 | F99: 18 | G99: 24 | H99: 30 | I99: 36 | J99: 48 | K99: 8 | L99: 7.1 | M99: 6.1 | N99: 5.3 | O99: 4.3 | P99: 3.5 | Q99: 1.9 | R99: H=0.0004*Q^2-0.1664*Q+9.0062 | S99: 0.9996 | U99: 20 | V99: =0.0004*Q^2-0.1664*Q+9.0062 -> 5.8382 | Y99: 60 | Z99: Bridado | AA99: 80 | AB99: Trifásico | AC99: 2.4 | AD99: 2900 | AE99: 418 | AF99: 110 | AG99: e=-0.0335*Q^2+2.2237*Q+31.136 | AH99: =-0.0335*Q^2+2.2237*Q+31.136 -> 62.21 | AI99: 4600000
A100: EBARA | B100: DRV | C100: DRV/A80-145-3.2 | D100: 6 | E100: 12 | F100: 18 | G100: 30 | H100: 42 | I100: 54 | J100: 60 | K100: 14 | L100: 12.2 | M100: 11 | N100: 8 | O100: 5.5 | P100: 2.5 | Q100: 1.5 | R100: H=0.0004*Q^2-0.2572*Q+15.422 | S100: 0.999 | U100: =Q -> 20 | V100: =0.0004*Q^2-0.2572*Q+15.422 -> 10.438 | W100: =IF(AND(V100>H-1,V100<H+1,V100>Q100),"OK","") ->  | Y100: 50 | Z100: Bridado | AA100: 80 | AB100: Trifásico | AC100: 3.2 | AD100: 2900 | AE100: 447 | AF100: 110 | AG100: e=-0.034*Q^2+2.4213*Q+30.195 | AH100: =-0.034*Q^2+2.4213*Q+30.195 -> 65.021 | AI100: 4700000
A101: EBARA | B101: DRV | C101: DRV/A80-155-3.2 | D101: 6 | E101: 12 | F101: 18 | G101: 30 | H101: 42 | I101: 54 | J101: 60 | K101: 16.5 | L101: 14 | M101: 13 | N101: 9.8 | O101: 7 | P101: 4 | Q101: 2.5 | R101: H=0.0004*Q^2-0.2799*Q+17.817 | S101: 0.9974 | U101: 20 | V101: =0.0004*Q^2-0.2799*Q+17.817 -> 12.379 | Y101: 50 | Z101: Bridado | AA101: 80 | AB101: Trifásico | AC101: 3.2 | AD101: 2900 | AE101: 447 | AF101: 110 | AG101: e=-0.026*Q^2+2.088*Q+32.673 | AH101: =-0.026*Q^2+2.088*Q+32.673 -> 64.033 | AI101: 4800000
A102: EBARA | B102: DRV | C102: DRV/A80-185-7.4 | D102: 15 | E102: 24 | F102: 30 | G102: 36 | H102: 42 | I102: 48 | J102: 54 | K102: 25.5 | L102: 23.6 | M102: 22.3 | N102: 20.9 | O102: 19.5 | P102: 18 | Q102: 16.5 | R102: H=-0.0007*Q^2-0.1833*Q+28.404 | S102: 1 | U102: 20 | V102: =-0.0007*Q^2-0.1833*Q+28.404 -> 24.458 | Y102: 70 | Z102: Bridado | AA102: 80 | AB102: Trifásico | AC102: 7.4 | AD102: 2900 | AE102: 565 | AF102: 110 | AG102: e=-0.0439*Q^2+3.672*Q-5.1804 | AH102: =-0.0439*Q^2+3.672*Q-5.1804 -> 50.6996 | AI102: 4900000
A103: EBARA | B103: DRV | C103: DRV/A80-200-18.2 | D103: 15 | E103: 24 | F103: 30 | G103: 36 | H103: 42 | I103: 48 | J103: 54 | K103: 44 | L103: 42.5 | M103: 41 | N103: 40 | O103: 38 | P103: 37.5 | Q103: 35.5 | R103: H=-0.0008*Q^2-0.1596*Q+46.639 | S103: 0.9907 | U103: 20 | V103: =-0.0008*Q^2-0.1596*Q+46.639 -> 43.127 | Y103: 50 | Z103: Bridado | AA103: 80 | AB103: Trifásico | AC103: 18.2 | AD103: 2900 | AE103: 630 | AF103: 110 | AG103: e=-0.0361*Q^2+3.0251*Q+3.5407 | AH103: =-0.0361*Q^2+3.0251*Q+3.5407 -> 49.6027 | AI103: 5000000
A104: EBARA | B104: DRV | C104: DRV/A65-145-1.0M | D104: 15 | E104: 24 | F104: 30 | G104: 36 | H104: 42 | K104: 4.8 | L104: 3.5 | M104: 2.7 | N104: 1.9 | O104: 0.8 | R104: H=-0.0006*Q^2-0.1091*Q+6.5529 | S104: 0.9981 | U104: 20 | V104: =-0.0006*Q^2-0.1091*Q+6.5529 -> 4.1309 | Y104: 50 | Z104: Bridado | AA104: 65 | AB104: Monofásico | AC104: 1 | AD104: 2900 | AE104: 383 | AF104: 110 | AG104: e=-0.0421*Q^2+3.5728*Q-3.9927 | AH104: =-0.0421*Q^2+3.5728*Q-3.9927 -> 50.6233 | AI104: 5100000
A105: EBARA | B105: DRV | C105: DRV/A65-165-1.0M | D105: 15 | E105: 24 | F105: 30 | G105: 36 | H105: 42 | I105: 48 | K105: 6.1 | L105: 4.8 | M105: 3.8 | N105: 2.7 | O105: 1.8 | P105: 0.5 | R105: H=-0.0009*Q^2-0.1138*Q+8.0069 | S105: 0.999 | U105: 20 | V105: =-0.0009*Q^2-0.1138*Q+8.0069 -> 5.3709 | Y105: 50 | Z105: Bridado | AA105: 65 | AB105: Monofásico | AC105: 1 | AD105: 2900 | AE105: 383 | AF105: 110 | AG105: e=-0.0632*Q^2+4.6806*Q-16.886 | AH105: =-0.0632*Q^2+4.6806*Q-16.886 -> 51.446 | AI105: 5200000
A106: EBARA | B106: DRV | C106: DRV/A65-182-1.2M | D106: 15 | E106: 24 | F106: 30 | G106: 36 | H106: 42 | I106: 48 | K106: 7.2 | L106: 5.8 | M106: 4.7 | N106: 3.9 | O106: 2.5 | P106: 1.3 | R106: H=-0.0011*Q^2-0.107*Q+9.0353 | S106: 0.998 | U106: 20 | V106: =-0.0011*Q^2-0.107*Q+9.0353 -> 6.4553 | W106: OK | Y106: 50 | Z106: Bridado | AA106: 65 | AB106: Monofásico | AC106: 1.2 | AD106: 2900 | AE106: 383 | AF106: 110 | AG106: e=-0.0433*Q^2+3.6355*Q-4.7224 | AH106: =-0.0433*Q^2+3.6355*Q-4.7224 -> 50.6676 | AI106: 5300000
A107: EBARA | B107: DRV | C107: DRV/A65-145-1.1 | D107: 15 | E107: 24 | F107: 30 | G107: 36 | H107: 42 | K107: 4.8 | L107: 3.5 | M107: 2.7 | N107: 1.9 | O107: 0.8 | R107: H=-0.0006*Q^2-0.1091*Q+6.5529 | S107: 0.9981 | U107: 20 | V107: =-0.0006*Q^2-0.1091*Q+6.5529 -> 4.1309 | Y107: 50 | Z107: Bridado | AA107: 65 | AB107: Trifásico | AC107: 1 | AD107: 2900 | AE107: 383 | AF107: 110 | AG107: e=-0.0353*Q^2+2.9931*Q+3.8363 | AH107: =-0.0353*Q^2+2.9931*Q+3.8363 -> 49.5783 | AI107: 5400000
A108: EBARA | B108: DRV | C108: DRV/A65-165-1.1 | D108: 15 | E108: 24 | F108: 30 | G108: 36 | H108: 42 | I108: 48 | K108: 6.1 | L108: 4.8 | M108: 3.8 | N108: 2.7 | O108: 1.8 | P108: 0.5 | R108: H=-0.0009*Q^2-0.1138*Q+8.0069 | S108: 0.999 | U108: 20 | V108: =-0.0009*Q^2-0.1138*Q+8.0069 -> 5.3709 | Y108: 50 | Z108: Bridado | AA108: 65 | AB108: Trifásico | AC108: 1 | AD108: 2900 | AE108: 383 | AF108: 110 | AG108: e=-0.0433*Q^2+3.6355*Q-4.7224 | AH108: =-0.0433*Q^2+3.6355*Q-4.7224 -> 50.6676 | AI108: 5500000
A109: EBARA | B109: DRV | C109: DRV/A65-182-1.4 | D109: 15 | E109: 24 | F109: 30 | G109: 36 | H109: 42 | I109: 48 | K109: 7.2 | L109: 5.8 | M109: 4.7 | N109: 3.9 | O109: 2.5 | P109: 1.3 | R109: H=-0.0011*Q^2-0.107*Q+9.0353 | S109: 0.998 | U109: 20 | V109: =-0.0011*Q^2-0.107*Q+9.0353 -> 6.4553 | W109: OK | Y109: 50 | Z109: Bridado | AA109: 65 | AB109: Trifásico | AC109: 1.3 | AD109: 2900 | AE109: 383 | AF109: 110 | AG109: e=-0.0632*Q^2+4.6806*Q-16.886 | AH109: =-0.0632*Q^2+4.6806*Q-16.886 -> 51.446 | AI109: 5600000
A110: EBARA | B110: DRV | C110: DRV/A80-165-1.0M | D110: 15 | E110: 24 | F110: 30 | G110: 36 | H110: 42 | I110: 48 | J110: 54 | K110: 5.8 | L110: 4.8 | M110: 4.2 | N110: 3.7 | O110: 2.9 | P110: 2.1 | Q110: 1.5 | R110: H=-0.0003*Q^2-0.0879*Q+7.1643 | S110: 0.9977 | U110: 20 | V110: =-0.0003*Q^2-0.0879*Q+7.1643 -> 5.2863 | Y110: 50 | Z110: Bridado | AA110: 80 | AB110: Monofásico | AC110: 1 | AD110: 2900 | AE110: 418 | AF110: 110 | AG110: e=-0.0439*Q^2+3.672*Q-5.1804 | AH110: =-0.0439*Q^2+3.672*Q-5.1804 -> 50.6996 | AI110: 5700000
A111: EBARA | B111: DRV | C111: DRV/A80-165-1.4 | D111: 15 | E111: 24 | F111: 30 | G111: 36 | H111: 42 | I111: 48 | J111: 54 | K111: 5.8 | L111: 4.8 | M111: 4.2 | N111: 3.7 | O111: 2.9 | P111: 2.1 | Q111: 1.5 | R111: H=-0.0003*Q^2-0.0879*Q+7.1643 | S111: 0.9977 | U111: 20 | V111: =-0.0003*Q^2-0.0879*Q+7.1643 -> 5.2863 | Y111: 50 | Z111: Bridado | AA111: 80 | AB111: Trifásico | AC111: 1.4 | AD111: 2900 | AE111: 418 | AF111: 110 | AG111: e=-0.0361*Q^2+3.0251*Q+3.5407 | AH111: =-0.0361*Q^2+3.0251*Q+3.5407 -> 49.6027 | AI111: 5800000
A112: EBARA | B112: DRV | C112: DRV/A80-182-1.2M | D112: 15 | E112: 24 | F112: 30 | G112: 36 | H112: 42 | I112: 48 | J112: 60 | K112: 6.7 | L112: 5.9 | M112: 5.3 | N112: 4.4 | O112: 3.9 | P112: 3.1 | Q112: 1.8 | R112: H=-0.0002*Q^2-0.0961*Q+8.2481 | S112: 0.9972 | U112: 20 | V112: =-0.0002*Q^2-0.0961*Q+8.2481 -> 6.2461 | W112: OK | Y112: 50 | Z112: Bridado | AA112: 80 | AB112: Monofásico | AC112: 1.2 | AD112: 2900 | AE112: 418 | AF112: 110 | AG112: e=-0.0354*Q^2+3.1694*Q+1.2717 | AH112: =-0.0354*Q^2+3.1694*Q+1.2717 -> 50.4997 | AI112: 5900000
A113: EBARA | B113: DRV | C113: DRV/A80-182-1.4 | D113: 15 | E113: 24 | F113: 30 | G113: 36 | H113: 42 | I113: 48 | J113: 60 | K113: 6.7 | L113: 5.9 | M113: 5.3 | N113: 4.4 | O113: 3.9 | P113: 3.1 | Q113: 1.8 | R113: H=-0.0002*Q^2-0.0961*Q+8.2481 | S113: 0.9972 | U113: 20 | V113: =-0.0002*Q^2-0.0961*Q+8.2481 -> 6.2461 | W113: OK | Y113: 50 | Z113: Bridado | AA113: 80 | AB113: Trifásico | AC113: 1.4 | AD113: 2900 | AE113: 418 | AF113: 110 | AG113: e=-0.0432*Q^2+3.4993*Q-1.6942 | AH113: =-0.0432*Q^2+3.4993*Q-1.6942 -> 51.0118 | AI113: 6000000

Sheet APU
A1: SUMINISTROS | I1: INSTALACIÓN | Q1: VÁLVULAS
A2: Ítem | B2: PVC | C2: GRP | D2: CCP | E2: PEAD | F2: ACERO | G2: HD | I2: Ítem | J2: PVC | K2: GRP | L2: CCP | M2: PEAD | N2: ACERO | O2: HD | Q2: ITEM | R2: SUMINISTRO | S2: INSTALACIÓN
A3: 1 | B3: 2 | C3: 3 | D3: 4 | E3: 5 | F3: 6 | G3: 7 | I3: 1 | J3: 2 | K3: 3 | L3: 4 | M3: 5 | N3: 6 | O3: 7 | Q3: Válvula de globo 1.25" | R3: 1000 | S3: 2000
A4: Tubería 1.25" | B4: 10000 | C4: 2000 | D4: 3000 | E4: 4000 | F4: 5000 | G4: 6000 | I4: Tubería 1.25" | J4: 10000 | K4: 2000 | L4: 3000 | M4: 4000 | N4: 5000 | O4: 6000 | Q4: Válvula de globo 1.5" | R4: =R3+1 -> 1001 | S4: =S3+1 -> 2001
A5: Tubería 1.5" | B5: =B4+1 -> 10001 | C5: =C4+1 -> 2001 | D5: =D4+1 -> 3001 | E5: =E4+1 -> 4001 | F5: =F4+1 -> 5001 | G5: =G4+1 -> 6001 | I5: Tubería 1.5" | J5: =J4+1 -> 10001 | K5: =K4+1 -> 2001 | L5: =L4+1 -> 3001 | M5: =M4+1 -> 4001 | N5: =N4+1 -> 5001 | O5: =O4+1 -> 6001 | Q5: Válvula de globo 2" | R5: =R4+1 -> 1002 | S5: =S4+1 -> 2002
A6: Tubería 2" | B6: 10002 | C6: 2002 | D6: 3002 | E6: 4002 | F6: 5002 | G6: =G5+1 -> 6002 | I6: Tubería 2" | J6: 10002 | K6: 2002 | L6: 3002 | M6: 4002 | N6: 5002 | O6: =O5+1 -> 6002 | Q6: Válvula de globo 2.5" | R6: 1003 | S6: 2003
A7: Tubería 2.5" | B7: 10003 | C7: 2003 | D7: 3003 | E7: 4003 | F7: 5003 | G7: 6003 | I7: Tubería 2.5" | J7: 10003 | K7: 2003 | L7: 3003 | M7: 4003 | N7: 5003 | O7: 6003 | Q7: Válvula de globo 3" | R7: 1004 | S7: 2004
A8: Tubería 3" | B8: 10004 | C8: 2004 | D8: 3004 | E8: 4004 | F8: 5004 | G8: 6004 | I8: Tubería 3" | J8: 10004 | K8: 2004 | L8: 3004 | M8: 4004 | N8: 5004 | O8: 6004 | Q8: Válvula de globo 4" | R8: 1005 | S8: 2005
A9: Tubería 4" | B9: 10005 | C9: 2005 | D9: 3005 | E9: 4005 | F9: 5005 | G9: 6005 | I9: Tubería 4" | J9: 10005 | K9: 2005 | L9: 3005 | M9: 4005 | N9: 5005 | O9: 6005 | Q9: Válvula de mariposa 1.25" | R9: 1006 | S9: 2006
A10: Codo 90 radio corto 1.25" | B10: 10006 | C10: 2006 | D10: 3006 | E10: 4006 | F10: 5006 | G10: 6006 | I10: Codo 90 radio corto 1.25" | J10: 10006 | K10: 2006 | L10: 3006 | M10: 4006 | N10: 5006 | O10: 6006 | Q10: Válvula de mariposa 1.5" | R10: 1007 | S10: 2007
A11: Codo 90 radio corto 1.5" | B11: 10007 | C11: 2007 | D11: 3007 | E11: 4007 | F11: 5007 | G11: 6007 | I11: Codo 90 radio corto 1.5" | J11: 10007 | K11: 2007 | L11: 3007 | M11: 4007 | N11: 5007 | O11: 6007 | Q11: Válvula de mariposa 2" | R11: 1008 | S11: 2008
A12: Codo 90 radio corto 2" | B12: 10008 | C12: 2008 | D12: 3008 | E12: 4008 | F12: 5008 | G12: 6008 | I12: Codo 90 radio corto 2" | J12: 10008 | K12: 2008 | L12: 3008 | M12: 4008 | N12: 5008 | O12: 6008 | Q12: Válvula de mariposa 2.5" | R12: 1009 | S12: 2009
A13: Codo 90 radio corto 2.5" | B13: 10009 | C13: 2009 | D13: 3009 | E13: 4009 | F13: 5009 | G13: 6009 | I13: Codo 90 radio corto 2.5" | J13: 10009 | K13: 2009 | L13: 3009 | M13: 4009 | N13: 5009 | O13: 6009 | Q13: Válvula de mariposa 3" | R13: 1010 | S13: 2010
A14: Codo 90 radio corto 3" | B14: 10010 | C14: 2010 | D14: 3010 | E14: 4010 | F14: 5010 | G14: 6010 | I14: Codo 90 radio corto 3" | J14: 10010 | K14: 2010 | L14: 3010 | M14: 4010 | N14: 5010 | O14: 6010 | Q14: Válvula de mariposa 4" | R14: 1011 | S14: 2011
A15: Codo 90 radio corto 4" | B15: 10011 | C15: 2011 | D15: 3011 | E15: 4011 | F15: 5011 | G15: 6011 | I15: Codo 90 radio corto 4" | J15: 10011 | K15: 2011 | L15: 3011 | M15: 4011 | N15: 5011 | O15: 6011 | Q15: Válvula de Cheque 1.25" | R15: 1012 | S15: 2012
A16: Codo 90 radio medio 1.25" | B16: 10012 | C16: 2012 | D16: 3012 | E16: 4012 | F16: 5012 | G16: 6012 | I16: Codo 90 radio medio 1.25" | J16: 10012 | K16: 2012 | L16: 3012 | M16: 4012 | N16: 5012 | O16: 6012 | Q16: Válvula de Cheque 1.5" | R16: 1013 | S16: 2013
A17: Codo 90 radio medio 1.5" | B17: 10013 | C17: 2013 | D17: 3013 | E17: 4013 | F17: 5013 | G17: 6013 | I17: Codo 90 radio medio 1.5" | J17: 10013 | K17: 2013 | L17: 3013 | M17: 4013 | N17: 5013 | O17: 6013 | Q17: Válvula de Cheque 2" | R17: 1014 | S17: 2014
A18: Codo 90 radio medio 2" | B18: 10014 | C18: 2014 | D18: 3014 | E18: 4014 | F18: 5014 | G18: 6014 | I18: Codo 90 radio medio 2" | J18: 10014 | K18: 2014 | L18: 3014 | M18: 4014 | N18: 5014 | O18: 6014 | Q18: Válvula de Cheque 2.5" | R18: 1015 | S18: 2015
A19: Codo 90 radio medio 2.5" | B19: 10015 | C19: 2015 | D19: 3015 | E19: 4015 | F19: 5015 | G19: 6015 | I19: Codo 90 radio medio 2.5" | J19: 10015 | K19: 2015 | L19: 3015 | M19: 4015 | N19: 5015 | O19: 6015 | Q19: Válvula de Cheque 3" | R19: 1016 | S19: 2016
A20: Codo 90 radio medio 3" | B20: 10016 | C20: 2016 | D20: 3016 | E20: 4016 | F20: 5016 | G20: 6016 | I20: Codo 90 radio medio 3" | J20: 10016 | K20: 2016 | L20: 3016 | M20: 4016 | N20: 5016 | O20: 6016 | Q20: Válvula de Cheque 4" | R20: 1017 | S20: 2017
A21: Codo 90 radio medio 4" | B21: 10017 | C21: 2017 | D21: 3017 | E21: 4017 | F21: 5017 | G21: 6017 | I21: Codo 90 radio medio 4" | J21: 10017 | K21: 2017 | L21: 3017 | M21: 4017 | N21: 5017 | O21: 6017 | Q21: Válvula de compuerta 1.25" | R21: 1018 | S21: 2018
A22: Codo 90 gran radio 1.25" | B22: 10018 | C22: 2018 | D22: 3018 | E22: 4018 | F22: 5018 | G22: 6018 | I22: Codo 90 gran radio 1.25" | J22: 10018 | K22: 2018 | L22: 3018 | M22: 4018 | N22: 5018 | O22: 6018 | Q22: Válvula de compuerta 1.5" | R22: 1019 | S22: 2019
A23: Codo 90 gran radio 1.5" | B23: 10019 | C23: 2019 | D23: 3019 | E23: 4019 | F23: 5019 | G23: 6019 | I23: Codo 90 gran radio 1.5" | J23: 10019 | K23: 2019 | L23: 3019 | M23: 4019 | N23: 5019 | O23: 6019 | Q23: Válvula de compuerta 2" | R23: 1020 | S23: 2020
A24: Codo 90 gran radio 2" | B24: 10020 | C24: 2020 | D24: 3020 | E24: 4020 | F24: 5020 | G24: 6020 | I24: Codo 90 gran radio 2" | J24: 10020 | K24: 2020 | L24: 3020 | M24: 4020 | N24: 5020 | O24: 6020 | Q24: Válvula de compuerta 2.5" | R24: 1021 | S24: 2021
A25: Codo 90 gran radio 2.5" | B25: 10021 | C25: 2021 | D25: 3021 | E25: 4021 | F25: 5021 | G25: 6021 | I25: Codo 90 gran radio 2.5" | J25: 10021 | K25: 2021 | L25: 3021 | M25: 4021 | N25: 5021 | O25: 6021 | Q25: Válvula de compuerta 3" | R25: 1022 | S25: 2022
A26: Codo 90 gran radio 3" | B26: 10022 | C26: 2022 | D26: 3022 | E26: 4022 | F26: 5022 | G26: 6022 | I26: Codo 90 gran radio 3" | J26: 10022 | K26: 2022 | L26: 3022 | M26: 4022 | N26: 5022 | O26: 6022 | Q26: Válvula de compuerta 4" | R26: 1023 | S26: 2023
A27: Codo 90 gran radio 4" | B27: 10023 | C27: 2023 | D27: 3023 | E27: 4023 | F27: 5023 | G27: 6023 | I27: Codo 90 gran radio 4" | J27: 10023 | K27: 2023 | L27: 3023 | M27: 4023 | N27: 5023 | O27: 6023
A28: Codo 45 1.25" | B28: 10024 | C28: 2024 | D28: 3024 | E28: 4024 | F28: 5024 | G28: 6024 | I28: Codo 45 1.25" | J28: 10024 | K28: 2024 | L28: 3024 | M28: 4024 | N28: 5024 | O28: 6024
A29: Codo 45 1.5" | B29: 10025 | C29: 2025 | D29: 3025 | E29: 4025 | F29: 5025 | G29: 6025 | I29: Codo 45 1.5" | J29: 10025 | K29: 2025 | L29: 3025 | M29: 4025 | N29: 5025 | O29: 6025
A30: Codo 45 2" | B30: 10026 | C30: 2026 | D30: 3026 | E30: 4026 | F30: 5026 | G30: 6026 | I30: Codo 45 2" | J30: 10026 | K30: 2026 | L30: 3026 | M30: 4026 | N30: 5026 | O30: 6026
A31: Codo 45 2.5" | B31: 10027 | C31: 2027 | D31: 3027 | E31: 4027 | F31: 5027 | G31: 6027 | I31: Codo 45 2.5" | J31: 10027 | K31: 2027 | L31: 3027 | M31: 4027 | N31: 5027 | O31: 6027
A32: Codo 45 3" | B32: 10028 | C32: 2028 | D32: 3028 | E32: 4028 | F32: 5028 | G32: 6028 | I32: Codo 45 3" | J32: 10028 | K32: 2028 | L32: 3028 | M32: 4028 | N32: 5028 | O32: 6028
A33: Codo 45 4" | B33: 10029 | C33: 2029 | D33: 3029 | E33: 4029 | F33: 5029 | G33: 6029 | I33: Codo 45 4" | J33: 10029 | K33: 2029 | L33: 3029 | M33: 4029 | N33: 5029 | O33: 6029
A34: Tee 1.25" | B34: 10030 | C34: 2030 | D34: 3030 | E34: 4030 | F34: 5030 | G34: 6030 | I34: Tee 1.25" | J34: 10030 | K34: 2030 | L34: 3030 | M34: 4030 | N34: 5030 | O34: 6030
A35: Tee 1.5" | B35: 10031 | C35: 2031 | D35: 3031 | E35: 4031 | F35: 5031 | G35: 6031 | I35: Tee 1.5" | J35: 10031 | K35: 2031 | L35: 3031 | M35: 4031 | N35: 5031 | O35: 6031
A36: Tee 2" | B36: 10032 | C36: 2032 | D36: 3032 | E36: 4032 | F36: 5032 | G36: 6032 | I36: Tee 2" | J36: 10032 | K36: 2032 | L36: 3032 | M36: 4032 | N36: 5032 | O36: 6032
A37: Tee 2.5" | B37: 10033 | C37: 2033 | D37: 3033 | E37: 4033 | F37: 5033 | G37: 6033 | I37: Tee 2.5" | J37: 10033 | K37: 2033 | L37: 3033 | M37: 4033 | N37: 5033 | O37: 6033
A38: Tee 3" | B38: 10034 | C38: 2034 | D38: 3034 | E38: 4034 | F38: 5034 | G38: 6034 | I38: Tee 3" | J38: 10034 | K38: 2034 | L38: 3034 | M38: 4034 | N38: 5034 | O38: 6034
A39: Tee 4" | B39: 10035 | C39: 2035 | D39: 3035 | E39: 4035 | F39: 5035 | G39: 6035 | I39: Tee 4" | J39: 10035 | K39: 2035 | L39: 3035 | M39: 4035 | N39: 5035 | O39: 6035
A40: Uniones 1.25" | B40: 10036 | C40: 2036 | D40: 3036 | E40: 4036 | F40: 5036 | G40: 6036 | I40: Uniones 1.25" | J40: 10036 | K40: 2036 | L40: 3036 | M40: 4036 | N40: 5036 | O40: 6036
A41: Uniones 1.5" | B41: 10037 | C41: 2037 | D41: 3037 | E41: 4037 | F41: 5037 | G41: 6037 | I41: Uniones 1.5" | J41: 10037 | K41: 2037 | L41: 3037 | M41: 4037 | N41: 5037 | O41: 6037
A42: Uniones 2" | B42: 10038 | C42: 2038 | D42: 3038 | E42: 4038 | F42: 5038 | G42: 6038 | I42: Uniones 2" | J42: 10038 | K42: 2038 | L42: 3038 | M42: 4038 | N42: 5038 | O42: 6038
A43: Uniones 2.5" | B43: 10039 | C43: 2039 | D43: 3039 | E43: 4039 | F43: 5039 | G43: 6039 | I43: Uniones 2.5" | J43: 10039 | K43: 2039 | L43: 3039 | M43: 4039 | N43: 5039 | O43: 6039
A44: Uniones 3" | B44: 10040 | C44: 2040 | D44: 3040 | E44: 4040 | F44: 5040 | G44: 6040 | I44: Uniones 3" | J44: 10040 | K44: 2040 | L44: 3040 | M44: 4040 | N44: 5040 | O44: 6040
A45: Uniones 4" | B45: 10041 | C45: 2041 | D45: 3041 | E45: 4041 | F45: 5041 | G45: 6041 | I45: Uniones 4" | J45: 10041 | K45: 2041 | L45: 3041 | M45: 4041 | N45: 5041 | O45: 6041
A46: Yee 1.25" | B46: 10042 | C46: 2042 | D46: 3042 | E46: 4042 | F46: 5042 | G46: 6042 | I46: Yee 1.25" | J46: 10042 | K46: 2042 | L46: 3042 | M46: 4042 | N46: 5042 | O46: 6042
A47: Yee 1.5" | B47: 10043 | C47: 2043 | D47: 3043 | E47: 4043 | F47: 5043 | G47: 6043 | I47: Yee 1.5" | J47: 10043 | K47: 2043 | L47: 3043 | M47: 4043 | N47: 5043 | O47: 6043
A48: Yee 2" | B48: 10044 | C48: 2044 | D48: 3044 | E48: 4044 | F48: 5044 | G48: 6044 | I48: Yee 2" | J48: 10044 | K48: 2044 | L48: 3044 | M48: 4044 | N48: 5044 | O48: 6044
A49: Yee 2.5" | B49: 10045 | C49: 2045 | D49: 3045 | E49: 4045 | F49: 5045 | G49: 6045 | I49: Yee 2.5" | J49: 10045 | K49: 2045 | L49: 3045 | M49: 4045 | N49: 5045 | O49: 6045
A50: Yee 3" | B50: 10046 | C50: 2046 | D50: 3046 | E50: 4046 | F50: 5046 | G50: 6046 | I50: Yee 3" | J50: 10046 | K50: 2046 | L50: 3046 | M50: 4046 | N50: 5046 | O50: 6046
A51: Yee 4" | B51: 10047 | C51: 2047 | D51: 3047 | E51: 4047 | F51: 5047 | G51: 6047 | I51: Yee 4" | J51: 10047 | K51: 2047 | L51: 3047 | M51: 4047 | N51: 5047 | O51: 6047
